NUMERO_MANDATO;RIGA_MANDATO;IMPORTO_RIGA;IMPORTO_MANDATO;BENEFICIARIO;CIG;TITOLO_PAGAMENTO;DATA_MANDATO;CAPITOLO;ARTICOLO;NUMERO_IMPEGNO;TITOLO;DESCR_TITOLO;LIVELLO_II;DESCR_LIVELLO_II;LIVELLO_III;DESCR_LIVELLO_III;LIVELLO_IV;DESCR_LIVELLO_IV;LIVELLO_V;DESCR_LIVELLO_V;DATA_PAG_EFF
31;1;400;400;dipendenti comunali; ;ATTIVAZIONE TIROCINIO DI FORMAZIONE E ORIENTAMENTO -mese dicembre 2016;18/01/2017;1200;0;234;1;Spese correnti;3;Acquisto di beni e servizi;2;Acquisto di servizi;12;Lavoro flessibile, quota LSU e acquisto di servizi da agenzie di lavoro interinale;999;Altre forme di lavoro flessibile n.a.c.;18/01/2017
32;1;400;400;dipendenti comunali; ;Attivazione tirocinio di formazione e orientamento mese dicembre 2016;18/01/2017;1200;0;387;1;Spese correnti;3;Acquisto di beni e servizi;2;Acquisto di servizi;12;Lavoro flessibile, quota LSU e acquisto di servizi da agenzie di lavoro interinale;999;Altre forme di lavoro flessibile n.a.c.;18/01/2017
37;1;337,48;337,48;dipendenti comunali; ;gettoni presenza dei consiglieri 2^ SEMESTRE anno 2016;18/01/2017;1106;3;206;1;Spese correnti;3;Acquisto di beni e servizi;2;Acquisto di servizi;1;Organi e incarichi istituzionali dell'amministrazione;1;Organi istituzionali dell'amministrazione - Indennit�;18/01/2017
38;1;784,37;784,37;dipendenti comunali; ;INDENNITA AMMINISTRATORI MESE GENNAIO 2016;18/01/2017;1106;2;0;1;Spese correnti;3;Acquisto di beni e servizi;2;Acquisto di servizi;1;Organi e incarichi istituzionali dell'amministrazione;1;Organi istituzionali dell'amministrazione - Indennit�;18/01/2017
43;1;2.250,00;2.250,00;ISTITUTO COMPRENSIVO STATALE; ;Progetto Pluriclasse  Nuove tecnologie Laboratorio di informatica per il potenziamento delle discipline-Impegno di spesa e liquidazione;21/01/2017;5138;8;439;1;Spese correnti;4;Trasferimenti correnti;1;Trasferimenti correnti a Amministrazioni Pubbliche;1;Trasferimenti correnti a Amministrazioni Centrali;2;Trasferimenti correnti a Ministero dell'Istruzione - Istituzioni scolastiche;21/01/2017
45;1;4.750,39;4.750,39;MEDDA LUIGINO;Z991B95C4C;"SALDO Fatt.n. 000005-2016-FatPA16  del 25/11/2016 PROGETTAZIONE E SICUREZZA IN FASE PROGETTUALE ""OPERE DI MANUTENZIONE DI STRADE URBANE ED EXTRAURBANE"" SECONDO INTERVENTO";21/01/2017;28112;21;306;2;Spese in conto capitale;2;Investimenti fissi lordi e acquisto di terreni;1;Beni materiali;9;Beni immobili;12;Infrastrutture stradali;21/01/2017
46;1;6.627,78;6.627,78;ORRU' GIANCARLO;ZD00871B31;ACCONTO Fatt.n. 06-2016-ORR  del 19/12/2016 GIG: Z4C086DB2E - SALDO ONORARI PROFESSIONALI PER LA DIREZIONE, MISURA E CONTABILITÀ LAVORI E PER IL COORD SICUREZZA IN FASE DI ESEC   'LAVORI DI RIQUALIFICAZIONE ITINERARIO DEL P.A.R.C. PALEOARCHEO;21/01/2017;29618;12;541;2;Spese in conto capitale;2;Investimenti fissi lordi e acquisto di terreni;1;Beni materiali;10;Beni immobili di valore culturale, storico ed artistico;5;Siti archeologici di valore culturale, storico ed artistico;21/01/2017
47;1;344,16;344,16;ORRU' GIANCARLO;ZD00871B31;SALDO Fatt.n. 06-2016-ORR  del 19/12/2016 GIG: Z4C086DB2E - SALDO ONORARI PROFESSIONALI PER LA DIREZIONE, MISURA E CONTABILITÀ LAVORI E PER IL COORD SICUREZZA IN FASE DI ESEC   'LAVORI DI RIQUALIFICAZIONE ITINERARIO DEL P.A.R.C. PALEOARCHEO;21/01/2017;29618;12;431;2;Spese in conto capitale;2;Investimenti fissi lordi e acquisto di terreni;1;Beni materiali;10;Beni immobili di valore culturale, storico ed artistico;5;Siti archeologici di valore culturale, storico ed artistico;21/01/2017
48;1;2.500,00;2.500,00;PRESIDENZA CONS.MINISTRI DIPARTIMENTO PROTEZIONE CIVILE; ;Contributo al Dipartimento Protezione Civile Roma a favore delle popolazioni colpite dal sisma del 24/08/2016 e successive e del 26 e 30/10/2016- Impegno di spesa e liquidazione;21/01/2017;5253;1;440;1;Spese correnti;4;Trasferimenti correnti;1;Trasferimenti correnti a Amministrazioni Pubbliche;1;Trasferimenti correnti a Amministrazioni Centrali;999;Trasferimenti correnti a altre Amministrazioni Centrali n.a.c.;21/01/2017
49;1;1.624,24;1.624,24;A.I.A.S. - ASS.NE ITALIANA  ASS.ZA AGLI SPASTICI; ;L. R. 12/85. Impegno e liquidazione III trimestre 2016 a favore dell'AIAS per trasporto.;21/01/2017;10453;5;427;1;Spese correnti;4;Trasferimenti correnti;2;Trasferimenti correnti a Famiglie;2;Interventi assistenziali;999;Altri assegni e sussidi assistenziali;21/01/2017
50;1;153,5;153,5;FARAD SRL;ZDE1C6DA75;SALDO Fatt.n. 51  del 20/12/2016;21/01/2017;1613;1;386;1;Spese correnti;3;Acquisto di beni e servizi;1;Acquisto di beni;2;Altri beni di consumo;999;Altri beni e materiali di consumo n.a.c.;21/01/2017
53;1;63.651,71;63.651,71;HGV ADVERTISING SRLU;66073161A7;SALDO Fatt.n. 2_2017/PA  del 11/01/2017 SAL 2 QUOTA PARTE ATI PER RIQUALIFICAZIONE ITINERARIO P.A.R.C. PALEARCHEOLOGICO CENTRO CON IL PARCO ARCHEOLOGICO SANTU ANTINE;21/01/2017;29618;19;361;2;Spese in conto capitale;2;Investimenti fissi lordi e acquisto di terreni;1;Beni materiali;10;Beni immobili di valore culturale, storico ed artistico;5;Siti archeologici di valore culturale, storico ed artistico;21/01/2017
55;1;225;225;ANAC (eX AVCP);6513557546;CONTR. ANAC AFFID. LAVORI  BONIFICA CAVA SITO GEOPALEONTOLOGICO DUIDDURU;21/01/2017;29617;0;410;2;Spese in conto capitale;2;Investimenti fissi lordi e acquisto di terreni;1;Beni materiali;9;Beni immobili;14;Opere per la sistemazione del suolo;21/01/2017
56;1;61.600,00;61.600,00;ICEA SRL;62395943DB;SALDO Fatt.n. FATTPA 31_16  del 30/12/2016;21/01/2017;30521;0;429;2;Spese in conto capitale;2;Investimenti fissi lordi e acquisto di terreni;1;Beni materiali;9;Beni immobili;2;Fabbricati ad uso commerciale;21/01/2017
57;1;21,27;21,27;LIBRERIA MONDADORI DI CASTA C. E M. SNC; ;SALDO Fatt.n. 58P  del 13/12/2016 FORNITURA LIBRI DI TESTO SCUOLA PRIMARIA A.S. 2016/2017;23/01/2017;4221;1;396;1;Spese correnti;3;Acquisto di beni e servizi;1;Acquisto di beni;1;Giornali, riviste e pubblicazioni;2;Pubblicazioni;23/01/2017
58;1;365,77;365,77;ALD AUTOMOTIVE ITALIA SRL;5104930181;SALDO Fatt.n. INRF418125  del 30/11/2016;24/01/2017;10441;8;42;1;Spese correnti;3;Acquisto di beni e servizi;2;Acquisto di servizi;7;Utilizzo di beni di terzi;2;Noleggi di mezzi di trasporto;24/01/2017
59;1;4.145,00;4.145,00;GIUNONE SOCIETA' COOPERATIVA;673092897E;SALDO Fatt.n. 24/PA  del 07/12/2016 Vs dare per serv. gest.musei + serv aggiuntivi e centro@ll-in DICEMBRE 2016 - CIG 673092897E;30/01/2017;7219;1;209;1;Spese correnti;3;Acquisto di beni e servizi;2;Acquisto di servizi;15;Contratti di servizio pubblico;999;Altre spese per contratti di servizio pubblico;30/01/2017
60;1;365,77;365,77;ALD AUTOMOTIVE ITALIA SRL;5104930181;SALDO Fatt.n. INRF464000  del 29/12/2016;30/01/2017;10441;8;42;1;Spese correnti;3;Acquisto di beni e servizi;2;Acquisto di servizi;7;Utilizzo di beni di terzi;2;Noleggi di mezzi di trasporto;30/01/2017
61;1;365,77;365,77;ALD AUTOMOTIVE ITALIA SRL;5104930181;SALDO Fatt.n. INRF367270  del 22/10/2016;30/01/2017;10441;8;42;1;Spese correnti;3;Acquisto di beni e servizi;2;Acquisto di servizi;7;Utilizzo di beni di terzi;2;Noleggi di mezzi di trasporto;30/01/2017
62;1;1.000,00;1.000,00;PUTZOLU SALVATORE SAS;Z641CE608D;SALDO Fatt.n. 2  del 14/01/2017;30/01/2017;1812;2;29;1;Spese correnti;3;Acquisto di beni e servizi;1;Acquisto di beni;2;Altri beni di consumo;2;Carburanti, combustibili e lubrificanti;30/01/2017
63;1;52.940,30;52.940,30;OCRAM COSTRUZIONI Srl;66073161A7;SALDO Fatt.n. 58/PA  del 09/12/2016;31/01/2017;29618;19;119;2;Spese in conto capitale;2;Investimenti fissi lordi e acquisto di terreni;1;Beni materiali;10;Beni immobili di valore culturale, storico ed artistico;5;Siti archeologici di valore culturale, storico ed artistico;31/01/2017
65;1;2.806,00;2.806,00;ELETTROIMPIANTI DI FRONGIA ANTONIO GEROLAMO;Z651C49AAA;SALDO Fatt.n. 2E  del 21/01/2017 FORNITURA A NOLO IN OPERA LUMINARIE NATALIZIE CIG: Z651C49AAA DET. 228 DEL 01/12/2016;01/02/2017;8239;2;392;1;Spese correnti;3;Acquisto di beni e servizi;2;Acquisto di servizi;7;Utilizzo di beni di terzi;8;Noleggi di impianti e macchinari;01/02/2017
66;1;793;793;ELETTROIMPIANTI DI FRONGIA ANTONIO GEROLAMO;Z571BB9BB1;SALDO Fatt.n. 10E  del 24/12/2016 OPERE DI MANUTENZIONE STRAORDINARIA IMPIANTI ELETTRICI  CIG:Z571BB9BB1 DET. 192 DEL 6/12/2016;01/02/2017;29113;3;317;2;Spese in conto capitale;5;Altre spese in conto capitale;99;Altre spese in conto capitale n.a.c.;99;Altre spese in conto capitale n.a.c.;999;Altre spese in conto capitale n.a.c.;01/02/2017
68;1;407,35;407,35;RAI -RADIO TELEVISIONE ITALIANA SPA; ;"Rinnovo Canone RAI anno 2017 nr. 754598 intestato a Biblioteca Comunale "" E. De Amicis"" - Genoni. Impegno di spesa e Liquidazione.";06/02/2017;5122;1;32;1;Spese correnti;3;Acquisto di beni e servizi;2;Acquisto di servizi;99;Altri servizi;999;Altri servizi diversi n.a.c.;06/02/2017
69;1;427;427;ELETTROIMPIANTI DI FRONGIA ANTONIO GEROLAMO;ZD91D25684;SALDO Fatt.n. 3E  del 31/01/2017 OPERE DI MANUTENZIONE STRAORDINARIA DELL'IMPIANTO DI ILLUMINAZIONE PUBBLICA CIG ZD91D25684  DETERMINA 248 DEL 16.12.2016;06/02/2017;29113;3;433;2;Spese in conto capitale;5;Altre spese in conto capitale;99;Altre spese in conto capitale n.a.c.;99;Altre spese in conto capitale n.a.c.;999;Altre spese in conto capitale n.a.c.;06/02/2017
70;1;4.323,72;4.323,72;ANEDDA FRANCESCO;61975793FB;SALDO Fatt.n. 1/PA  del 18/01/2017;06/02/2017;30521;0;96;2;Spese in conto capitale;2;Investimenti fissi lordi e acquisto di terreni;1;Beni materiali;9;Beni immobili;2;Fabbricati ad uso commerciale;06/02/2017
71;1;3.923,52;3.923,52;SANNA IRENEO;Z0B177A270;SALDO Fatt.n. FATTPA 1_17  del 20/01/2017;06/02/2017;30521;0;387;2;Spese in conto capitale;2;Investimenti fissi lordi e acquisto di terreni;1;Beni materiali;9;Beni immobili;2;Fabbricati ad uso commerciale;06/02/2017
72;1;166,26;4.323,72;SOI STEFANO - R.L. R.T.P. Soi-Anedda-Falchi;61975793FB;ACCONTO Fatt.n. 1/PA  del 09/01/2017;06/02/2017;30521;0;96;2;Spese in conto capitale;2;Investimenti fissi lordi e acquisto di terreni;1;Beni materiali;9;Beni immobili;2;Fabbricati ad uso commerciale;06/02/2017
72;2;4.156,46;4.323,72;SOI STEFANO - R.L. R.T.P. Soi-Anedda-Falchi;61975793FB;SALDO Fatt.n. 1/PA  del 09/01/2017;06/02/2017;30521;0;96;2;Spese in conto capitale;2;Investimenti fissi lordi e acquisto di terreni;1;Beni materiali;9;Beni immobili;2;Fabbricati ad uso commerciale;06/02/2017
73;1;432,34;432,34;ENEL ENERGIA SpA;ZA90D7BC4B;SALDO Fatt.n. 004800019663  del 09/01/2017;06/02/2017;4311;5;151;1;Spese correnti;3;Acquisto di beni e servizi;2;Acquisto di servizi;5;Utenze e canoni;4;Energia elettrica;06/02/2017
74;1;877,5;877,5;ENEL ENERGIA SpA;ZA90D7BC4B;SALDO Fatt.n. 004800019662  del 09/01/2017;06/02/2017;1813;17;153;1;Spese correnti;3;Acquisto di beni e servizi;2;Acquisto di servizi;5;Utenze e canoni;4;Energia elettrica;06/02/2017
75;1;168,48;168,48;ENEL ENERGIA SpA;ZA90D7BC4B;SALDO Fatt.n. 004800019669  del 09/01/2017;06/02/2017;1813;17;153;1;Spese correnti;3;Acquisto di beni e servizi;2;Acquisto di servizi;5;Utenze e canoni;4;Energia elettrica;06/02/2017
76;1;339,31;339,31;ENEL ENERGIA SpA;ZA90D7BC4B;ACCONTO Fatt.n. 004800019670  del 09/01/2017;06/02/2017;5122;4;351;1;Spese correnti;3;Acquisto di beni e servizi;2;Acquisto di servizi;5;Utenze e canoni;4;Energia elettrica;06/02/2017
77;1;140,67;140,67;ENEL ENERGIA SpA;ZA90D7BC4B;SALDO Fatt.n. 004800019670  del 09/01/2017;06/02/2017;1813;17;153;1;Spese correnti;3;Acquisto di beni e servizi;2;Acquisto di servizi;5;Utenze e canoni;4;Energia elettrica;06/02/2017
78;1;1.179,20;1.179,20;OCRAM COSTRUZIONI Srl;66073161A7;SALDO Fatt.n. 2/PA  del 12/01/2017;06/02/2017;29618;12;431;2;Spese in conto capitale;2;Investimenti fissi lordi e acquisto di terreni;1;Beni materiali;10;Beni immobili di valore culturale, storico ed artistico;5;Siti archeologici di valore culturale, storico ed artistico;06/02/2017
79;1;1.953,45;1.953,45;OCRAM COSTRUZIONI Srl;66073161A7;SALDO Fatt.n. 58/PA  del 09/12/2016;06/02/2017;29618;12;431;2;Spese in conto capitale;2;Investimenti fissi lordi e acquisto di terreni;1;Beni materiali;10;Beni immobili di valore culturale, storico ed artistico;5;Siti archeologici di valore culturale, storico ed artistico;06/02/2017
89;1;439,27;439,27;TREPERDUE Soc. Coop. Sociale;Z7718117E4;ACCONTO Fatt.n. 4/PA  del 04/01/2017;08/02/2017;10473;2;162;1;Spese correnti;4;Trasferimenti correnti;2;Trasferimenti correnti a Famiglie;2;Interventi assistenziali;999;Altri assegni e sussidi assistenziali;08/02/2017
90;1;1.250,00;1.250,00;TREPERDUE Soc. Coop. Sociale;Z7718117E4;ACCONTO Fatt.n. 4/PA  del 04/01/2017;08/02/2017;10473;1;226;1;Spese correnti;4;Trasferimenti correnti;2;Trasferimenti correnti a Famiglie;2;Interventi assistenziali;999;Altri assegni e sussidi assistenziali;08/02/2017
91;1;6,82;6,82;TREPERDUE Soc. Coop. Sociale;Z7718117E4;SALDO Fatt.n. 4/PA  del 04/01/2017;08/02/2017;10441;1;161;1;Spese correnti;3;Acquisto di beni e servizi;2;Acquisto di servizi;15;Contratti di servizio pubblico;999;Altre spese per contratti di servizio pubblico;08/02/2017
92;1;3.286,69;3.286,69;AUTONOLEGGIO DI COGOTZI PAOLO & C. snc;59157707D5;SALDO Fatt.n. 1PA  del 09/01/2017 SERVIZIO TRASPORTO SCOLASTICO A.S 2016/2017  MESE DICEMBRE 2016;08/02/2017;4311;10;90;1;Spese correnti;3;Acquisto di beni e servizi;2;Acquisto di servizi;15;Contratti di servizio pubblico;2;Contratti di servizio di trasporto scolastico;08/02/2017
93;1;3.286,69;3.286,69;AUTONOLEGGIO DI COGOTZI PAOLO & C. snc;59157707D5;SALDO Fatt.n. 12 PA  del 31/01/2017 SERVIZIO TRASPORTO SCOLASTICO A.S 2016/2017  MESE GENNAIO 2017;08/02/2017;4311;10;419;1;Spese correnti;3;Acquisto di beni e servizi;2;Acquisto di servizi;15;Contratti di servizio pubblico;2;Contratti di servizio di trasporto scolastico;08/02/2017
94;1;125;125;Soggetto tutelato dalla normativa sulla privacy; ;Proroga piani personalizzati L. 162/98 gestione indiretta assistenza generica ed educativa periodo luglio-dicembre 2016.Impegno di spesa.;08/02/2017;10470;5;284;1;Spese correnti;4;Trasferimenti correnti;2;Trasferimenti correnti a Famiglie;2;Interventi assistenziali;999;Altri assegni e sussidi assistenziali;08/02/2017
95;1;442,52;442,52;Soggetto tutelato dalla normativa sulla privacy; ;Proroga piani personalizzati L. 162/98 gestione indiretta assistenza generica ed educativa periodo luglio-dicembre 2016.Impegno di spesa.;08/02/2017;10470;5;286;1;Spese correnti;4;Trasferimenti correnti;2;Trasferimenti correnti a Famiglie;2;Interventi assistenziali;999;Altri assegni e sussidi assistenziali;08/02/2017
96;1;500;500;Soggetto tutelato dalla normativa sulla privacy; ;Proroga piani personalizzati L. 162/98 MURA ANNA  gestione indiretta assistenza generica ed educativa periodo luglio-dicembre 2016.Impegno di spesa.;08/02/2017;10470;5;287;1;Spese correnti;4;Trasferimenti correnti;2;Trasferimenti correnti a Famiglie;2;Interventi assistenziali;999;Altri assegni e sussidi assistenziali;08/02/2017
97;1;330;330;Soggetto tutelato dalla normativa sulla privacy; ;Proroga piani personalizzati L. 162/98 gestione indiretta assistenza generica ed educativa periodo luglio-dicembre 2016.Impegno di spesa.;08/02/2017;10470;5;288;1;Spese correnti;4;Trasferimenti correnti;2;Trasferimenti correnti a Famiglie;2;Interventi assistenziali;999;Altri assegni e sussidi assistenziali;08/02/2017
98;1;572,44;572,44;Soggetto tutelato dalla normativa sulla privacy; ;Proroga piani personalizzati L. 162/98 gestione indiretta assistenza generica ed educativa periodo luglio-dicembre 2016.Impegno di spesa.;08/02/2017;10470;5;289;1;Spese correnti;4;Trasferimenti correnti;2;Trasferimenti correnti a Famiglie;2;Interventi assistenziali;999;Altri assegni e sussidi assistenziali;08/02/2017
99;1;203,28;203,28;Soggetto tutelato dalla normativa sulla privacy; ;Proroga piani personalizzati L. 162/98 gestione indiretta assistenza generica ed educativa periodo luglio-dicembre 2016.Impegno di spesa.;08/02/2017;10470;5;290;1;Spese correnti;4;Trasferimenti correnti;2;Trasferimenti correnti a Famiglie;2;Interventi assistenziali;999;Altri assegni e sussidi assistenziali;08/02/2017
100;1;221,5;221,5;Soggetto tutelato dalla normativa sulla privacy; ;Proroga piani personalizzati L. 162/98 gestione indiretta assistenza generica ed educativa periodo luglio-dicembre 2016.Impegno di spesa.;08/02/2017;10470;5;291;1;Spese correnti;4;Trasferimenti correnti;2;Trasferimenti correnti a Famiglie;2;Interventi assistenziali;999;Altri assegni e sussidi assistenziali;08/02/2017
101;1;500;500;Soggetto tutelato dalla normativa sulla privacy; ;Proroga piani personalizzati L. 162/98 gestione indiretta assistenza generica ed educativa periodo luglio-dicembre 2016.Impegno di spesa.;08/02/2017;10470;5;292;1;Spese correnti;4;Trasferimenti correnti;2;Trasferimenti correnti a Famiglie;2;Interventi assistenziali;999;Altri assegni e sussidi assistenziali;08/02/2017
102;1;232,17;232,17;Soggetto tutelato dalla normativa sulla privacy; ;Proroga piani personalizzati L. 162/98 gestione indiretta assistenza generica ed educativa periodo luglio-dicembre 2016.Impegno di spesa.;08/02/2017;10470;5;293;1;Spese correnti;4;Trasferimenti correnti;2;Trasferimenti correnti a Famiglie;2;Interventi assistenziali;999;Altri assegni e sussidi assistenziali;08/02/2017
103;1;437,59;437,59;Soggetto tutelato dalla normativa sulla privacy; ;Proroga piani personalizzati L. 162/98 gestione indiretta assistenza generica ed educativa periodo luglio-dicembre 2016.Impegno di spesa.;08/02/2017;10470;5;294;1;Spese correnti;4;Trasferimenti correnti;2;Trasferimenti correnti a Famiglie;2;Interventi assistenziali;999;Altri assegni e sussidi assistenziali;08/02/2017
104;1;302,02;302,02;Soggetto tutelato dalla normativa sulla privacy; ;Proroga piani personalizzati L. 162/98 gestione indiretta assistenza generica ed educativa periodo luglio-dicembre 2016.Impegno di spesa.;08/02/2017;10470;5;295;1;Spese correnti;4;Trasferimenti correnti;2;Trasferimenti correnti a Famiglie;2;Interventi assistenziali;999;Altri assegni e sussidi assistenziali;08/02/2017
105;1;455;455;Soggetto tutelato dalla normativa sulla privacy; ;Proroga piani personalizzati L. 162/98 gestione indiretta assistenza generica ed educativa periodo luglio-dicembre 2016.Impegno di spesa.;08/02/2017;10470;5;296;1;Spese correnti;4;Trasferimenti correnti;2;Trasferimenti correnti a Famiglie;2;Interventi assistenziali;999;Altri assegni e sussidi assistenziali;08/02/2017
106;1;125;125;Soggetto tutelato dalla normativa sulla privacy; ;Proroga piani personalizzati L. 162/98 gestione indiretta assistenza generica ed educativa periodo luglio-dicembre 2016.Impegno di spesa.;08/02/2017;10470;5;297;1;Spese correnti;4;Trasferimenti correnti;2;Trasferimenti correnti a Famiglie;2;Interventi assistenziali;999;Altri assegni e sussidi assistenziali;08/02/2017
107;1;219,67;219,67;Soggetto tutelato dalla normativa sulla privacy; ;Proroga piani personalizzati L. 162/98 gestione indiretta assistenza generica ed educativa periodo luglio-dicembre 2016.Impegno di spesa.;08/02/2017;10470;5;298;1;Spese correnti;4;Trasferimenti correnti;2;Trasferimenti correnti a Famiglie;2;Interventi assistenziali;999;Altri assegni e sussidi assistenziali;08/02/2017
108;1;155,14;155,14;Soggetto tutelato dalla normativa sulla privacy; ;Proroga piani personalizzati L. 162/98 gestione indiretta assistenza generica ed educativa periodo luglio-dicembre 2016.Impegno di spesa.;08/02/2017;10470;5;301;1;Spese correnti;4;Trasferimenti correnti;2;Trasferimenti correnti a Famiglie;2;Interventi assistenziali;999;Altri assegni e sussidi assistenziali;08/02/2017
109;1;406,53;406,53;Soggetto tutelato dalla normativa sulla privacy; ;Proroga piani personalizzati L. 162/98 gestione indiretta assistenza generica ed educativa periodo luglio-dicembre 2016.Impegno di spesa.;08/02/2017;10470;5;302;1;Spese correnti;4;Trasferimenti correnti;2;Trasferimenti correnti a Famiglie;2;Interventi assistenziali;999;Altri assegni e sussidi assistenziali;08/02/2017
110;1;147;147;Soggetto tutelato dalla normativa sulla privacy; ;Proroga piani personalizzati L. 162/98 gestione indiretta assistenza generica ed educativa periodo luglio-dicembre 2016.Impegno di spesa.;08/02/2017;10470;5;303;1;Spese correnti;4;Trasferimenti correnti;2;Trasferimenti correnti a Famiglie;2;Interventi assistenziali;999;Altri assegni e sussidi assistenziali;08/02/2017
111;1;220,79;220,79;Soggetto tutelato dalla normativa sulla privacy; ;Proroga piani personalizzati L. 162/98 gestione indiretta assistenza generica ed educativa periodo luglio-dicembre 2016.Impegno di spesa.;08/02/2017;10470;5;304;1;Spese correnti;4;Trasferimenti correnti;2;Trasferimenti correnti a Famiglie;2;Interventi assistenziali;999;Altri assegni e sussidi assistenziali;08/02/2017
112;1;441,78;441,78;Soggetto tutelato dalla normativa sulla privacy; ;Impegno di spesa nuovi piani L. 162/98 decorrenza ottobre-dicembre 2016.;08/02/2017;10470;5;378;1;Spese correnti;4;Trasferimenti correnti;2;Trasferimenti correnti a Famiglie;2;Interventi assistenziali;999;Altri assegni e sussidi assistenziali;08/02/2017
113;1;176;176;Soggetto tutelato dalla normativa sulla privacy; ;Impegno di spesa nuovi piani L. 162/98 decorrenza ottobre-dicembre 2016.;08/02/2017;10470;5;379;1;Spese correnti;4;Trasferimenti correnti;2;Trasferimenti correnti a Famiglie;2;Interventi assistenziali;999;Altri assegni e sussidi assistenziali;08/02/2017
114;1;2.990,00;2.990,00;UNIPOL  -ASSICURAZIONI UNINSIEME SRL;Z7418086F4;SERVIZIO ASSICURATIVO DI VEICOLI COMUNALI R.C.A. INFORTUNI E RESPONSABILITA' CIVILE VERSO TERZI. Affidamento e pre - impegnodi spesa - anno 2016;08/02/2017;1313;2;69;1;Spese correnti;10;Altre spese correnti;4;Premi di assicurazione;1;Premi di assicurazione contro i danni;3;Premi di assicurazione per responsabilit� civile verso terzi;08/02/2017
115;1;1.928,00;1.928,00;UNIPOL  -ASSICURAZIONI UNINSIEME SRL;Z7418086F4;SERVIZIO ASSICURATIVO DI VEICOLI COMUNALI R.C.A. INFORTUNI E RESPONSABILITA' CIVILE VERSO TERZI. Affidamento e pre - impegnodi spesa - anno 2016;08/02/2017;1813;13;70;1;Spese correnti;10;Altre spese correnti;4;Premi di assicurazione;99;Altri premi di assicurazione n.a.c.;999;Altri premi di assicurazione n.a.c.;08/02/2017
116;1;2.990,00;2.990,00;UNIPOL  -ASSICURAZIONI UNINSIEME SRL;Z0C1D25726;"RINNOVO SERVIZIO ASSICURATIVO POLIZZE AUTO. Impegno di spesa;";08/02/2017;1313;2;437;1;Spese correnti;10;Altre spese correnti;4;Premi di assicurazione;1;Premi di assicurazione contro i danni;3;Premi di assicurazione per responsabilit� civile verso terzi;08/02/2017
117;1;1.835,00;1.835,00;UNIPOL  -ASSICURAZIONI UNINSIEME SRL;Z0C1D25726;"RINNOVO SERVIZIO ASSICURATIVO POLIZZE AUTO. Impegno di spesa;";08/02/2017;1813;13;438;1;Spese correnti;10;Altre spese correnti;4;Premi di assicurazione;99;Altri premi di assicurazione n.a.c.;999;Altri premi di assicurazione n.a.c.;08/02/2017
118;1;123,58;123,58;ABBANOA  s.p.a; ;SALDO Fatt.n. 2016000690037846  del 31/12/2016 Il versamento deve essere effettuato tramite bonifico in favore di Abbanoa Spa indicando il nominativo del titolare dell'utenza, il codice cliente, il codice PDE ed il numero fattura;13/02/2017;6221;3;261;1;Spese correnti;3;Acquisto di beni e servizi;2;Acquisto di servizi;5;Utenze e canoni;5;Acqua;13/02/2017
119;1;59,47;1.916,44;ABBANOA  s.p.a; ;SALDO Fatt.n. 2016000690037268  del 31/12/2016 Il versamento deve essere effettuato tramite bonifico in favore di Abbanoa Spa indicando il nominativo del titolare dell'utenza, il codice cliente, il codice PDE ed il numero fattura;13/02/2017;1813;14;262;1;Spese correnti;3;Acquisto di beni e servizi;2;Acquisto di servizi;5;Utenze e canoni;5;Acqua;13/02/2017
119;2;62,34;1.916,44;ABBANOA  s.p.a; ;SALDO Fatt.n. 2016000690037653  del 31/12/2016 Il versamento deve essere effettuato tramite bonifico in favore di Abbanoa Spa indicando il nominativo del titolare dell'utenza, il codice cliente, il codice PDE ed il numero fattura;13/02/2017;1813;14;262;1;Spese correnti;3;Acquisto di beni e servizi;2;Acquisto di servizi;5;Utenze e canoni;5;Acqua;13/02/2017
119;3;65,32;1.916,44;ABBANOA  s.p.a; ;SALDO Fatt.n. 2016000690038005  del 31/12/2016 Il versamento deve essere effettuato tramite bonifico in favore di Abbanoa Spa indicando il nominativo del titolare dell'utenza, il codice cliente, il codice PDE ed il numero fattura;13/02/2017;1813;14;262;1;Spese correnti;3;Acquisto di beni e servizi;2;Acquisto di servizi;5;Utenze e canoni;5;Acqua;13/02/2017
119;4;90,18;1.916,44;ABBANOA  s.p.a; ;SALDO Fatt.n. 2016000690037253  del 31/12/2016 Il versamento deve essere effettuato tramite bonifico in favore di Abbanoa Spa indicando il nominativo del titolare dell'utenza, il codice cliente, il codice PDE ed il numero fattura;13/02/2017;1813;14;262;1;Spese correnti;3;Acquisto di beni e servizi;2;Acquisto di servizi;5;Utenze e canoni;5;Acqua;13/02/2017
119;5;234,99;1.916,44;ABBANOA  s.p.a; ;SALDO Fatt.n. 2016000690037305  del 31/12/2016 Il versamento deve essere effettuato tramite bonifico in favore di Abbanoa Spa indicando il nominativo del titolare dell'utenza, il codice cliente, il codice PDE ed il numero fattura;13/02/2017;1813;14;262;1;Spese correnti;3;Acquisto di beni e servizi;2;Acquisto di servizi;5;Utenze e canoni;5;Acqua;13/02/2017
119;6;1.405,14;1.916,44;ABBANOA  s.p.a; ;SALDO Fatt.n. 2016000690037303  del 31/12/2016 Il versamento deve essere effettuato tramite bonifico in favore di Abbanoa Spa indicando il nominativo del titolare dell'utenza, il codice cliente, il codice PDE ed il numero fattura;13/02/2017;1813;14;262;1;Spese correnti;3;Acquisto di beni e servizi;2;Acquisto di servizi;5;Utenze e canoni;5;Acqua;13/02/2017
120;1;147,85;814,77;ABBANOA  s.p.a; ;SALDO Fatt.n. 2016000690037799  del 31/12/2016 Il versamento deve essere effettuato tramite bonifico in favore di Abbanoa Spa indicando il nominativo del titolare dell'utenza, il codice cliente, il codice PDE ed il numero fattura;13/02/2017;9476;1;263;1;Spese correnti;3;Acquisto di beni e servizi;2;Acquisto di servizi;5;Utenze e canoni;5;Acqua;13/02/2017
120;2;667,92;814,77;ABBANOA  s.p.a; ;SALDO Fatt.n. 2016000690037798  del 31/12/2016 Il versamento deve essere effettuato tramite bonifico in favore di Abbanoa Spa indicando il nominativo del titolare dell'utenza, il codice cliente, il codice PDE ed il numero fattura;13/02/2017;9476;1;263;1;Spese correnti;3;Acquisto di beni e servizi;2;Acquisto di servizi;5;Utenze e canoni;5;Acqua;13/02/2017
121;1;554,3;554,3;ABBANOA  s.p.a; ;SALDO Fatt.n. 2016000690037302  del 31/12/2016 Il versamento deve essere effettuato tramite bonifico in favore di Abbanoa Spa indicando il nominativo del titolare dell'utenza, il codice cliente, il codice PDE ed il numero fattura;13/02/2017;10539;1;264;1;Spese correnti;3;Acquisto di beni e servizi;2;Acquisto di servizi;5;Utenze e canoni;5;Acqua;13/02/2017
122;1;96,68;96,68;E.N.E.L.   Servizio Elettrico S.p.A.; ;SALDO Fatt.n. 912031710722819  del 13/01/2017;13/02/2017;1813;6;125;1;Spese correnti;3;Acquisto di beni e servizi;2;Acquisto di servizi;5;Utenze e canoni;4;Energia elettrica;13/02/2017
123;1;1.085,15;1.085,15;E.N.E.L.   Servizio Elettrico S.p.A.; ;ACCONTO Fatt.n. 912030999890211  del 13/01/2017;13/02/2017;8237;1;126;1;Spese correnti;3;Acquisto di beni e servizi;2;Acquisto di servizi;5;Utenze e canoni;4;Energia elettrica;13/02/2017
124;1;503,49;503,49;E.N.E.L.   Servizio Elettrico S.p.A.; ;SALDO Fatt.n. 912030999890211  del 13/01/2017;13/02/2017;8237;1;38;1;Spese correnti;3;Acquisto di beni e servizi;2;Acquisto di servizi;5;Utenze e canoni;4;Energia elettrica;13/02/2017
125;1;122;122;E-DISTRIBUZIONE SPA; ;SALDO Fatt.n. 0000917900000382  del 02/02/2017;13/02/2017;1813;6;39;1;Spese correnti;3;Acquisto di beni e servizi;2;Acquisto di servizi;5;Utenze e canoni;4;Energia elettrica;13/02/2017
126;1;1.352,21;1.352,21;ENEL ENERGIA SpA;ZA90D7BC4B;ACCONTO Fatt.n. 004800000203  del 02/01/2017;13/02/2017;8237;1;140;1;Spese correnti;3;Acquisto di beni e servizi;2;Acquisto di servizi;5;Utenze e canoni;4;Energia elettrica;13/02/2017
127;1;175,81;1.884,27;ENEL ENERGIA SpA;ZA90D7BC4B;SALDO Fatt.n. 004800000204  del 02/01/2017;13/02/2017;8237;1;37;1;Spese correnti;3;Acquisto di beni e servizi;2;Acquisto di servizi;5;Utenze e canoni;4;Energia elettrica;13/02/2017
127;2;1.709,46;1.884,27;ENEL ENERGIA SpA;ZA90D7BC4B;ACCONTO Fatt.n. 004800000203  del 02/01/2017;13/02/2017;8237;1;37;1;Spese correnti;3;Acquisto di beni e servizi;2;Acquisto di servizi;5;Utenze e canoni;4;Energia elettrica;13/02/2017
128;1;78,1;259,58;ENEL ENERGIA SpA;ZA90D7BC4B;SALDO Fatt.n. 004800019671  del 09/01/2017;13/02/2017;1813;6;141;1;Spese correnti;3;Acquisto di beni e servizi;2;Acquisto di servizi;5;Utenze e canoni;4;Energia elettrica;13/02/2017
128;2;81,74;259,58;ENEL ENERGIA SpA;ZA90D7BC4B;SALDO Fatt.n. 004800019666  del 09/01/2017;13/02/2017;1813;6;141;1;Spese correnti;3;Acquisto di beni e servizi;2;Acquisto di servizi;5;Utenze e canoni;4;Energia elettrica;13/02/2017
128;3;100,74;259,58;ENEL ENERGIA SpA;ZA90D7BC4B;SALDO Fatt.n. 004800019664  del 09/01/2017;13/02/2017;1813;6;141;1;Spese correnti;3;Acquisto di beni e servizi;2;Acquisto di servizi;5;Utenze e canoni;4;Energia elettrica;13/02/2017
129;1;13,16;139,97;ENEL ENERGIA SpA;ZA90D7BC4B;SALDO Fatt.n. 004800019667  del 09/01/2017;13/02/2017;6221;2;139;1;Spese correnti;3;Acquisto di beni e servizi;2;Acquisto di servizi;5;Utenze e canoni;4;Energia elettrica;13/02/2017
129;2;13,44;139,97;ENEL ENERGIA SpA;ZA90D7BC4B;SALDO Fatt.n. 004800198223  del 08/02/2017;13/02/2017;6221;2;139;1;Spese correnti;3;Acquisto di beni e servizi;2;Acquisto di servizi;5;Utenze e canoni;4;Energia elettrica;13/02/2017
129;3;112,37;139,97;ENEL ENERGIA SpA;ZA90D7BC4B;SALDO Fatt.n. 004800019665  del 09/01/2017;13/02/2017;6221;2;139;1;Spese correnti;3;Acquisto di beni e servizi;2;Acquisto di servizi;5;Utenze e canoni;4;Energia elettrica;13/02/2017
130;1;44,02;44,02;ENEL ENERGIA SpA;ZA90D7BC4B;SALDO Fatt.n. 004800019668  del 09/01/2017;13/02/2017;10539;1;142;1;Spese correnti;3;Acquisto di beni e servizi;2;Acquisto di servizi;5;Utenze e canoni;4;Energia elettrica;13/02/2017
131;1;538,34;538,34;SARDA RETI GAS srl;ZEB0D7BD6A;SALDO Fatt.n. 2016-VEL2-0000260  del 31/12/2016 Fattura di Vendita C/to Somministrazione (Elettronica);13/02/2017;5122;3;330;1;Spese correnti;3;Acquisto di beni e servizi;2;Acquisto di servizi;5;Utenze e canoni;6;Gas;13/02/2017
132;1;1.154,57;1.154,57;SARDA RETI GAS srl;ZEB0D7BD6A;SALDO Fatt.n. 2016-VEL2-0000261  del 31/12/2016 Fattura di Vendita C/to Somministrazione (Elettronica);13/02/2017;4311;16;244;1;Spese correnti;3;Acquisto di beni e servizi;2;Acquisto di servizi;5;Utenze e canoni;6;Gas;13/02/2017
133;1;212,31;212,31;ABBANOA  s.p.a; ;SALDO Fatt.n. 2016000690037254  del 31/12/2016 Il versamento deve essere effettuato tramite bonifico in favore di Abbanoa Spa indicando il nominativo del titolare dell'utenza, il codice cliente, il codice PDE ed il numero fattura;13/02/2017;4311;8;253;1;Spese correnti;3;Acquisto di beni e servizi;2;Acquisto di servizi;5;Utenze e canoni;5;Acqua;13/02/2017
134;1;94,25;94,25;ABBANOA  s.p.a; ;SALDO Fatt.n. 2016000690037244  del 31/12/2016 Il versamento deve essere effettuato tramite bonifico in favore di Abbanoa Spa indicando il nominativo del titolare dell'utenza, il codice cliente, il codice PDE ed il numero fattura;13/02/2017;1813;18;417;1;Spese correnti;3;Acquisto di beni e servizi;2;Acquisto di servizi;5;Utenze e canoni;5;Acqua;13/02/2017
135;1;156,53;156,53;ABBANOA  s.p.a; ;SALDO Fatt.n. 2016000690037262  del 31/12/2016 Il versamento deve essere effettuato tramite bonifico in favore di Abbanoa Spa indicando il nominativo del titolare dell'utenza, il codice cliente, il codice PDE ed il numero fattura;13/02/2017;4247;2;255;1;Spese correnti;3;Acquisto di beni e servizi;2;Acquisto di servizi;5;Utenze e canoni;5;Acqua;13/02/2017
136;1;4.145,00;4.145,00;GIUNONE SOCIETA' COOPERATIVA;673092897E;SALDO Fatt.n. 2/PA  del 30/01/2017 Vs dare per serv. gest.musei + serv aggiuntivi e centro@ll-in GENNAIO 2017 - CIG 673092897E;13/02/2017;7219;1;209;1;Spese correnti;3;Acquisto di beni e servizi;2;Acquisto di servizi;15;Contratti di servizio pubblico;999;Altre spese per contratti di servizio pubblico;13/02/2017
137;1;77,65;77,65;BANCOPOSTA - POSTE ITALIANE S.P.A.; ;SALDO Fatt.n. 8717004059  del 17/01/2017 Fattura Elettronica relativa all'Identificativo Rendiconto 2090076155;13/02/2017;1223;1;360;1;Spese correnti;3;Acquisto di beni e servizi;2;Acquisto di servizi;16;Servizi amministrativi;2;Spese postali;13/02/2017
138;1;365,77;365,77;ALD AUTOMOTIVE ITALIA SRL;5104930181;SALDO Fatt.n. INRF369072  del 25/10/2016;13/02/2017;10441;8;42;1;Spese correnti;3;Acquisto di beni e servizi;2;Acquisto di servizi;7;Utilizzo di beni di terzi;2;Noleggi di mezzi di trasporto;13/02/2017
139;1;1.586,00;1.586,00;HALLEY SARDEGNA S.R.L.;Z871870EDF;SALDO Fatt.n. 0001199  del 30/12/2016;13/02/2017;1813;7;36;1;Spese correnti;3;Acquisto di beni e servizi;2;Acquisto di servizi;16;Servizi amministrativi;999;Altre spese per servizi amministrativi;13/02/2017
140;1;792,27;792,27;FRATELLI SERRA  S.r.l.;Z7D158F923;SALDO Fatt.n. 3/65  del 31/12/2016 VENDITA;13/02/2017;29113;3;267;2;Spese in conto capitale;5;Altre spese in conto capitale;99;Altre spese in conto capitale n.a.c.;99;Altre spese in conto capitale n.a.c.;999;Altre spese in conto capitale n.a.c.;13/02/2017
141;1;1.000,00;1.000,00;FRATELLI SERRA  S.r.l.;Z571BB9BB1;ACCONTO Fatt.n. 3/55  del 30/12/2016 VENDITA;13/02/2017;8124;1;228;1;Spese correnti;3;Acquisto di beni e servizi;1;Acquisto di beni;2;Altri beni di consumo;999;Altri beni e materiali di consumo n.a.c.;13/02/2017
142;1;234,93;234,93;FRATELLI SERRA  S.r.l.;Z571BB9BB1;SALDO Fatt.n. 3/55  del 30/12/2016 VENDITA;13/02/2017;29113;3;229;2;Spese in conto capitale;5;Altre spese in conto capitale;99;Altre spese in conto capitale n.a.c.;99;Altre spese in conto capitale n.a.c.;999;Altre spese in conto capitale n.a.c.;13/02/2017
143;1;49.454,30;49.454,30;GEOM. PUTZU SEBASTIANO;651179680C;ACCONTO Fatt.n. FATTPA 1_17  del 16/01/2017;13/02/2017;29113;8;408;2;Spese in conto capitale;2;Investimenti fissi lordi e acquisto di terreni;2;Terreni e beni materiali non prodotti;2;Patrimonio naturale non prodotto;3;Foreste;13/02/2017
144;1;29.968,70;29.968,70;GEOM. PUTZU SEBASTIANO;651178680C;SALDO Fatt.n. FATTPA 1_17  del 16/01/2017;13/02/2017;29113;9;406;2;Spese in conto capitale;2;Investimenti fissi lordi e acquisto di terreni;2;Terreni e beni materiali non prodotti;2;Patrimonio naturale non prodotto;3;Foreste;13/02/2017
145;1;1.634,40;1.634,40;CONSUL.SAR.2000 - SOC.COOP. a.r.l.;Z5F0FE5329;SALDO Fatt.n. FATTPA 124_16  del 30/12/2016;14/02/2017;1813;11;343;1;Spese correnti;3;Acquisto di beni e servizi;2;Acquisto di servizi;11;Prestazioni professionali e specialistiche;999;Altre prestazioni professionali e specialistiche n.a.c.;14/02/2017
146;1;177,29;177,29;BANCOPOSTA - POSTE ITALIANE S.P.A.; ;SALDO Fatt.n. 8717045544  del 13/02/2017 Fattura Elettronica relativa all'Identificativo Rendiconto 2090518337;18/02/2017;1223;1;360;1;Spese correnti;3;Acquisto di beni e servizi;2;Acquisto di servizi;16;Servizi amministrativi;2;Spese postali;18/02/2017
147;1;63.140,00;63.140,00;ICEA SRL;6395943DB;SALDO Fatt.n. FATTPA 2_17  del 15/02/2017;18/02/2017;30521;0;429;2;Spese in conto capitale;2;Investimenti fissi lordi e acquisto di terreni;1;Beni materiali;9;Beni immobili;2;Fabbricati ad uso commerciale;18/02/2017
148;1;36,06;189,61;E.N.E.L.   Servizio Elettrico S.p.A.; ;SALDO Fatt.n. 912031051703125  del 10/02/2017;18/02/2017;1813;6;42;1;Spese correnti;3;Acquisto di beni e servizi;2;Acquisto di servizi;5;Utenze e canoni;4;Energia elettrica;18/02/2017
148;2;153,55;189,61;E.N.E.L.   Servizio Elettrico S.p.A.; ;SALDO Fatt.n. 912030171708813  del 10/02/2017;18/02/2017;1813;6;42;1;Spese correnti;3;Acquisto di beni e servizi;2;Acquisto di servizi;5;Utenze e canoni;4;Energia elettrica;18/02/2017
149;1;1.555,74;1.555,74;E.N.E.L.   Servizio Elettrico S.p.A.; ;SALDO Fatt.n. 912030999890212  del 10/02/2017;18/02/2017;8237;1;38;1;Spese correnti;3;Acquisto di beni e servizi;2;Acquisto di servizi;5;Utenze e canoni;4;Energia elettrica;18/02/2017
150;1;36,06;36,06;E.N.E.L.   Servizio Elettrico S.p.A.; ;SALDO Fatt.n. 912030301701526  del 10/02/2017;18/02/2017;6221;2;43;1;Spese correnti;3;Acquisto di beni e servizi;2;Acquisto di servizi;5;Utenze e canoni;4;Energia elettrica;18/02/2017
151;1;98,54;98,54;TOTALERG S.P.A.;ZC4180339B;SALDO Fatt.n. I7043079  del 31/01/2017;18/02/2017;8123;1;40;1;Spese correnti;3;Acquisto di beni e servizi;1;Acquisto di beni;2;Altri beni di consumo;2;Carburanti, combustibili e lubrificanti;18/02/2017
152;1;43,08;90,71;TOTALERG S.P.A.;ZC4180339B;ACCONTO Fatt.n. I7003397  del 31/12/2016;18/02/2017;10417;3;270;1;Spese correnti;3;Acquisto di beni e servizi;1;Acquisto di beni;2;Altri beni di consumo;2;Carburanti, combustibili e lubrificanti;18/02/2017
152;2;47,63;90,71;TOTALERG S.P.A.;X5917B2BD8;SALDO Fatt.n. I7010031  del 31/12/2016;18/02/2017;10417;3;270;1;Spese correnti;3;Acquisto di beni e servizi;1;Acquisto di beni;2;Altri beni di consumo;2;Carburanti, combustibili e lubrificanti;18/02/2017
153;1;0,06;607,35;Libreria L'Arcobaleno di Muggianu Rosanna;ZED1CA2CA5;ACCONTO Fatt.n. 27B  del 27/01/2017;18/02/2017;4221;5;442;1;Spese correnti;3;Acquisto di beni e servizi;1;Acquisto di beni;1;Giornali, riviste e pubblicazioni;2;Pubblicazioni;18/02/2017
153;2;0,07;607,35;Libreria L'Arcobaleno di Muggianu Rosanna;ZED1CA2CA5;ACCONTO Fatt.n. 28B  del 27/01/2017;18/02/2017;4221;5;442;1;Spese correnti;3;Acquisto di beni e servizi;1;Acquisto di beni;1;Giornali, riviste e pubblicazioni;2;Pubblicazioni;18/02/2017
153;3;117,56;607,35;Libreria L'Arcobaleno di Muggianu Rosanna;ZED1CA2CA5;SALDO Fatt.n. 28B  del 27/01/2017;18/02/2017;4221;5;442;1;Spese correnti;3;Acquisto di beni e servizi;1;Acquisto di beni;1;Giornali, riviste e pubblicazioni;2;Pubblicazioni;18/02/2017
153;4;491,66;607,35;Libreria L'Arcobaleno di Muggianu Rosanna;ZED1CA2CA5;SALDO Fatt.n. 27B  del 27/01/2017;18/02/2017;4221;5;442;1;Spese correnti;3;Acquisto di beni e servizi;1;Acquisto di beni;1;Giornali, riviste e pubblicazioni;2;Pubblicazioni;18/02/2017
154;1;1.562,74;1.562,74;ELETTROIMPIANTI DI FRONGIA ANTONIO GEROLAMO;Z6118DA1E6;SALDO Fatt.n. 1E  del 10/01/2017 MANUTENZIONE ORDINARIA DELL'IMPIANTO DI ILLUMINAZIONE PUBBLICA E DI DUE IMPIANTI FOTOVOLTAICI  CIG Z6118DA1E6  DETERMINA 58 DEL 03.05.2016;18/02/2017;8238;1;136;1;Spese correnti;3;Acquisto di beni e servizi;2;Acquisto di servizi;9;Manutenzione ordinaria e riparazioni;4;Manutenzione ordinaria e riparazioni di impianti e macchinari;18/02/2017
155;1;207;207;TELECOM ITALIA  S.p.A.; ;SALDO Fatt.n. 8R00290976  del 06/12/2016 1BIM 2017;18/02/2017;4311;15;223;1;Spese correnti;3;Acquisto di beni e servizi;2;Acquisto di servizi;5;Utenze e canoni;1;Telefonia fissa;18/02/2017
156;1;151,39;151,39;TELECOM ITALIA  S.p.A.; ;ACCONTO Fatt.n. 4220717800046479  del 06/12/2016 1BIM 2017;18/02/2017;5122;2;225;1;Spese correnti;3;Acquisto di beni e servizi;2;Acquisto di servizi;5;Utenze e canoni;1;Telefonia fissa;18/02/2017
157;1;102,68;102,68;TELECOM ITALIA  S.p.A.; ;ACCONTO Fatt.n. 4220717800046479  del 06/12/2016 1BIM 2017;18/02/2017;1813;10;224;1;Spese correnti;3;Acquisto di beni e servizi;2;Acquisto di servizi;5;Utenze e canoni;1;Telefonia fissa;18/02/2017
158;1;449,03;449,03;TELECOM ITALIA  S.p.A.; ;SALDO Fatt.n. 4220717800046479  del 06/12/2016 1BIM 2017;18/02/2017;1813;10;41;1;Spese correnti;3;Acquisto di beni e servizi;2;Acquisto di servizi;5;Utenze e canoni;1;Telefonia fissa;18/02/2017
189;1;784,37;784,37;dipendenti comunali; ;STIPENDI MESE DI: FEBBRAIO 17;20/02/2017;1106;2;44;1;Spese correnti;3;Acquisto di beni e servizi;2;Acquisto di servizi;1;Organi e incarichi istituzionali dell'amministrazione;1;Organi istituzionali dell'amministrazione - Indennit�;20/02/2017
193;1;3.326,40;3.326,40;dipendenti comunali; ;Incarico revisore dei conti 2015/2018;20/02/2017;1106;12;234;1;Spese correnti;3;Acquisto di beni e servizi;2;Acquisto di servizi;1;Organi e incarichi istituzionali dell'amministrazione;8;Compensi agli organi istituzionali di revisione, di controllo ed altri incarichi istituzionali dell'amministrazione;20/02/2017
194;1;157,34;157,34;dipendenti comunali; ;spese viaggio revisore dei conti 2015/2018;20/02/2017;1106;13;235;1;Spese correnti;3;Acquisto di beni e servizi;2;Acquisto di servizi;1;Organi e incarichi istituzionali dell'amministrazione;2;Organi istituzionali dell'amministrazione - Rimborsi;20/02/2017
198;1;2.873,90;2.873,90;ENEL ENERGIA SpA;ZA90D7BC4B;SALDO Fatt.n. 004800277342  del 15/02/2017;22/02/2017;8237;1;37;1;Spese correnti;3;Acquisto di beni e servizi;2;Acquisto di servizi;5;Utenze e canoni;4;Energia elettrica;22/02/2017
203;1;332,48;332,48;ABBANOA  s.p.a; ;SALDO Fatt.n. 2017000690000557  del 16/02/2017 Il versamento deve essere effettuato tramite bonifico in favore di Abbanoa Spa indicando il nominativo del titolare dell'utenza, il codice cliente, il codice PDE ed il numero fattura;04/03/2017;6221;3;261;1;Spese correnti;3;Acquisto di beni e servizi;2;Acquisto di servizi;5;Utenze e canoni;5;Acqua;04/03/2017
204;1;770;770;OFFICINA MECCANICA GOMMISTA GIORGIO MELIS;Z461B67839;SALDO Fatt.n. 000001-2017-PA  del 23/02/2017;04/03/2017;8157;1;280;1;Spese correnti;3;Acquisto di beni e servizi;2;Acquisto di servizi;9;Manutenzione ordinaria e riparazioni;1;Manutenzione ordinaria e riparazioni di mezzi di trasporto ad uso civile, di sicurezza e ordine pubblico;04/03/2017
205;1;2.031,30;2.031,30;GREEN OLY;Z BF14124C;SALDO Fatt.n. 01/E/2017  del 17/01/2017 SALDO FATTURA;04/03/2017;8144;1;98;1;Spese correnti;3;Acquisto di beni e servizi;2;Acquisto di servizi;15;Contratti di servizio pubblico;999;Altre spese per contratti di servizio pubblico;04/03/2017
206;1;53,44;53,44;VODAFONE OMNITEL B.V.;Z401C91991;SALDO Fatt.n. AH03610190  del 02/03/2017 scissione pagamenti;04/03/2017;1616;1;447;1;Spese correnti;3;Acquisto di beni e servizi;2;Acquisto di servizi;99;Altri servizi;999;Altri servizi diversi n.a.c.;04/03/2017
207;1;4.416,39;4.416,39;BOI VALERIO SALVATORE;651179680C;SALDO Fatt.n. 000001-2017-2  del 17/02/2017;04/03/2017;29113;9;73;2;Spese in conto capitale;2;Investimenti fissi lordi e acquisto di terreni;2;Terreni e beni materiali non prodotti;2;Patrimonio naturale non prodotto;3;Foreste;04/03/2017
208;1;17,08;41,48;INFOCERT S.P.A.;Z891D4EA61;SALDO Fatt.n. INFVVA/17000462  del 27/02/2017;04/03/2017;1312;1;35;1;Spese correnti;3;Acquisto di beni e servizi;2;Acquisto di servizi;99;Altri servizi;999;Altri servizi diversi n.a.c.;04/03/2017
208;2;24,4;41,48;INFOCERT S.P.A.;Z891D4EA61;SALDO Fatt.n. INFVVA/17000461  del 27/02/2017;04/03/2017;1312;1;35;1;Spese correnti;3;Acquisto di beni e servizi;2;Acquisto di servizi;99;Altri servizi;999;Altri servizi diversi n.a.c.;04/03/2017
209;1;393,65;393,65;Libreria L'Arcobaleno di Muggianu Rosanna;ZED1CA2CA5;ACCONTO Fatt.n. 94B  del 20/02/2017;04/03/2017;4221;5;442;1;Spese correnti;3;Acquisto di beni e servizi;1;Acquisto di beni;1;Giornali, riviste e pubblicazioni;2;Pubblicazioni;04/03/2017
210;1;0,16;676,19;Libreria L'Arcobaleno di Muggianu Rosanna;ZED1CA2CA5;ACCONTO Fatt.n. 94B  del 20/02/2017;04/03/2017;4221;6;443;1;Spese correnti;3;Acquisto di beni e servizi;1;Acquisto di beni;1;Giornali, riviste e pubblicazioni;2;Pubblicazioni;04/03/2017
210;2;676,03;676,19;Libreria L'Arcobaleno di Muggianu Rosanna;ZED1CA2CA5;SALDO Fatt.n. 94B  del 20/02/2017;04/03/2017;4221;6;443;1;Spese correnti;3;Acquisto di beni e servizi;1;Acquisto di beni;1;Giornali, riviste e pubblicazioni;2;Pubblicazioni;04/03/2017
211;1;5.458,67;5.458,67;HALLEY SARDEGNA S.R.L.;ZDA1CB3B09;SALDO Fatt.n. 0000191  del 22/02/2017;04/03/2017;1223;2;451;1;Spese correnti;3;Acquisto di beni e servizi;2;Acquisto di servizi;19;Servizi informatici e di telecomunicazioni;1;Gestione e manutenzione applicazioni;04/03/2017
212;1;154;154;A.N.U.T.E.L.; ;Impegno spesa e liquidazione quota Anutel anno 2017;04/03/2017;1830;1;53;1;Spese correnti;3;Acquisto di beni e servizi;2;Acquisto di servizi;99;Altri servizi;3;Quote di associazioni;04/03/2017
213;1;100;100;Unione Comuni Marmilla; ;"Impegno spesa e liquidazione partecipazione corso di formazione  "" IL RIACCERTAMENTO ORDINARIO E RENDICONTO 2016 "".";04/03/2017;1307;2;52;1;Spese correnti;3;Acquisto di beni e servizi;2;Acquisto di servizi;4;Acquisto di servizi per formazione e addestramento del personale dell'ente;999;Acquisto di servizi per altre spese per formazione e addestramento n.a.c.;04/03/2017
214;1;17,08;17,08;INFOCERT S.P.A.;Z571D058EE;SALDO Fatt.n. INFVVA/17000267  del 31/01/2017;04/03/2017;1813;7;46;1;Spese correnti;3;Acquisto di beni e servizi;2;Acquisto di servizi;16;Servizi amministrativi;999;Altre spese per servizi amministrativi;04/03/2017
220;1;165,37;165,37;COMUNE DI GENONI; ;IMPEGNO SPESA E LIQUIDAZIONE TENUTA CONTO 11979085  - 2 SEMESTRE  2016;11/03/2017;1312;1;258;1;Spese correnti;3;Acquisto di beni e servizi;2;Acquisto di servizi;99;Altri servizi;999;Altri servizi diversi n.a.c.;11/03/2017
221;1;365,77;365,77;ALD AUTOMOTIVE ITALIA SRL;5104930181;SALDO Fatt.n. INRF046618  del 31/01/2017;11/03/2017;10441;8;42;1;Spese correnti;3;Acquisto di beni e servizi;2;Acquisto di servizi;7;Utilizzo di beni di terzi;2;Noleggi di mezzi di trasporto;11/03/2017
222;1;2.031,30;2.031,30;GREEN OLY;ZBF14124CD;SALDO Fatt.n. 02/E/2017  del 03/03/2017 SALDO FATTURA;11/03/2017;8144;1;98;1;Spese correnti;3;Acquisto di beni e servizi;2;Acquisto di servizi;15;Contratti di servizio pubblico;999;Altre spese per contratti di servizio pubblico;11/03/2017
223;1;344;344;LA FORMAZIONE di Francesca Paola Schiro'; ;SALDO Fatt.n. FATTPA 5_17  del 07/03/2017;11/03/2017;1610;2;50;1;Spese correnti;3;Acquisto di beni e servizi;2;Acquisto di servizi;4;Acquisto di servizi per formazione e addestramento del personale dell'ente;999;Acquisto di servizi per altre spese per formazione e addestramento n.a.c.;11/03/2017
224;1;10.793,74;10.793,74;INGEGNERIA & AMBIENTE -STUDIO TECNICO ASSOCIATO;Z6315D307D;SALDO Fatt.n. FATTPA 5_16  del 26/11/2016;11/03/2017;29617;0;268;2;Spese in conto capitale;2;Investimenti fissi lordi e acquisto di terreni;1;Beni materiali;9;Beni immobili;14;Opere per la sistemazione del suolo;11/03/2017
225;1;0,02;78,78;TOTALERG S.P.A.;ZC4180339B;ACCONTO Fatt.n. I7086843  del 28/02/2017;11/03/2017;8123;1;40;1;Spese correnti;3;Acquisto di beni e servizi;1;Acquisto di beni;2;Altri beni di consumo;2;Carburanti, combustibili e lubrificanti;11/03/2017
225;2;78,76;78,78;TOTALERG S.P.A.;ZC4180339B;SALDO Fatt.n. I7086843  del 28/02/2017;11/03/2017;8123;1;40;1;Spese correnti;3;Acquisto di beni e servizi;1;Acquisto di beni;2;Altri beni di consumo;2;Carburanti, combustibili e lubrificanti;11/03/2017
226;1;1.605,23;1.605,23;E-DISTRIBUZIONE SPA;649560352A;ACCONTO Fatt.n. 0000917900001073  del 03/03/2017;13/03/2017;25110;2;402;2;Spese in conto capitale;2;Investimenti fissi lordi e acquisto di terreni;1;Beni materiali;9;Beni immobili;1;Fabbricati ad uso abitativo;13/03/2017
227;1;871,32;871,32;E-DISTRIBUZIONE SPA;649560352A;SALDO Fatt.n. 0000917900001073  del 03/03/2017;13/03/2017;29113;11;449;2;Spese in conto capitale;2;Investimenti fissi lordi e acquisto di terreni;1;Beni materiali;9;Beni immobili;2;Fabbricati ad uso commerciale;13/03/2017
228;1;441,44;441,44;E-DISTRIBUZIONE SPA;649560352A;ACCONTO Fatt.n. 0000917900001060  del 03/03/2017;13/03/2017;29113;3;450;2;Spese in conto capitale;5;Altre spese in conto capitale;99;Altre spese in conto capitale n.a.c.;99;Altre spese in conto capitale n.a.c.;999;Altre spese in conto capitale n.a.c.;13/03/2017
229;1;18,53;18,53;E-DISTRIBUZIONE SPA;649560352A;ACCONTO Fatt.n. 0000917900001060  del 03/03/2017;13/03/2017;29113;11;449;2;Spese in conto capitale;2;Investimenti fissi lordi e acquisto di terreni;1;Beni materiali;9;Beni immobili;2;Fabbricati ad uso commerciale;13/03/2017
230;1;334,03;334,03;E-DISTRIBUZIONE SPA;649560352A;SALDO Fatt.n. 0000917900001060  del 03/03/2017;13/03/2017;1813;6;48;1;Spese correnti;3;Acquisto di beni e servizi;2;Acquisto di servizi;5;Utenze e canoni;4;Energia elettrica;13/03/2017
231;1;48,46;48,46;TOTALERG S.P.A.;X5917B2BD8;ACCONTO Fatt.n. I7092129  del 28/02/2017;13/03/2017;10417;3;56;1;Spese correnti;3;Acquisto di beni e servizi;1;Acquisto di beni;2;Altri beni di consumo;2;Carburanti, combustibili e lubrificanti;13/03/2017
232;1;14.057,36;14.057,36;TROGU SALVATORE;ZCB154DA96;SALDO Fatt.n. 01/E/2017  del 17/01/2017 RIQUALIFICAZIONE URBANA DI AMBITI CARATTERIZZATI DALLA PRESENZA DI EDILIZIA RESIDENZIALE PUBBLICA NEL COMUNE DI GENONI - SALDO ONORARIO;15/03/2017;25110;2;276;2;Spese in conto capitale;2;Investimenti fissi lordi e acquisto di terreni;1;Beni materiali;9;Beni immobili;1;Fabbricati ad uso abitativo;15/03/2017
234;1;4.145,00;4.145,00;GIUNONE SOCIETA' COOPERATIVA;673092897E;SALDO Fatt.n. 3/PA  del 28/02/2017 Vs dare per serv. gest.musei + serv aggiuntivi e centro@ll-in FEBBRAIO 2017 - CIG 673092897E;15/03/2017;7219;1;209;1;Spese correnti;3;Acquisto di beni e servizi;2;Acquisto di servizi;15;Contratti di servizio pubblico;999;Altre spese per contratti di servizio pubblico;15/03/2017
283;1;800;800;dipendenti comunali; ;Attivazione tirocinio di formazione e orientamento dal 07-11-2016 al 30-04-2017 e liquidazione mese di GENNAIO FEBBRAIO 2017;18/03/2017;1200;1;387;1;Spese correnti;4;Trasferimenti correnti;2;Trasferimenti correnti a Famiglie;3;Borse di studio, dottorati di ricerca e contratti di formazione specialistica area medica;4;Tirocini formativi;18/03/2017
284;1;800;800;dipendenti comunali; ;Proroga tirocinio di inserimento e/o reinserimento - Approvazione e impegno di spesa.;18/03/2017;1200;1;33;1;Spese correnti;4;Trasferimenti correnti;2;Trasferimenti correnti a Famiglie;3;Borse di studio, dottorati di ricerca e contratti di formazione specialistica area medica;4;Tirocini formativi;18/03/2017
287;1;784,37;784,37;dipendenti comunali; ;STIPENDI MESE DI: MARZO 17;18/03/2017;1106;2;44;1;Spese correnti;3;Acquisto di beni e servizi;2;Acquisto di servizi;1;Organi e incarichi istituzionali dell'amministrazione;1;Organi istituzionali dell'amministrazione - Indennit�;18/03/2017
291;1;2.900,76;2.900,76;BANCO DI SARDEGNA  S.p.A.;ZAB0D09C2E;SALDO Fatt.n. 000247/PAMAN/17  del 23/01/2017;20/03/2017;1312;2;189;1;Spese correnti;3;Acquisto di beni e servizi;2;Acquisto di servizi;17;Servizi finanziari;2;Oneri per servizio di tesoreria;20/03/2017
292;1;122,24;122,24;A.S.E.L. SARDEGNA; ;Quota associativa Asel anno 2017;20/03/2017;1830;1;55;1;Spese correnti;3;Acquisto di beni e servizi;2;Acquisto di servizi;99;Altri servizi;3;Quote di associazioni;20/03/2017
293;1;7.200,02;7.200,02;COMUNE NURALLAO; ;"Impegno e liquidazione al comune di Nurallao SALDO  dei fondi RAS progetto ""Ritornare a casa""  utente n. 3.";20/03/2017;10473;5;61;1;Spese correnti;4;Trasferimenti correnti;1;Trasferimenti correnti a Amministrazioni Pubbliche;2;Trasferimenti correnti a Amministrazioni Locali;3;Trasferimenti correnti a Comuni;20/03/2017
294;1;3.000,00;3.000,00;CONSORZIO TURISTICO SA PERDA 'E IDDOCCA; ;CONTRIBUTO CONSORZIO TURISTICO 2016;20/03/2017;7218;3;420;1;Spese correnti;4;Trasferimenti correnti;1;Trasferimenti correnti a Amministrazioni Pubbliche;2;Trasferimenti correnti a Amministrazioni Locali;18;Trasferimenti correnti a Consorzi di enti locali;20/03/2017
295;1;12,48;12,48;TOTALERG S.P.A.;ZC4180339B;ACCONTO Fatt.n. I6170132  del 30/04/2016;20/03/2017;10417;3;73;1;Spese correnti;3;Acquisto di beni e servizi;1;Acquisto di beni;2;Altri beni di consumo;2;Carburanti, combustibili e lubrificanti;20/03/2017
296;1;66,1;66,1;TOTALERG S.P.A.;ZC4180339B;SALDO Fatt.n. I6170132  del 30/04/2016;20/03/2017;10417;3;270;1;Spese correnti;3;Acquisto di beni e servizi;1;Acquisto di beni;2;Altri beni di consumo;2;Carburanti, combustibili e lubrificanti;20/03/2017
297;1;2.440,00;2.440,00;I.S.I.com Impianti di Schirru Carlo Luigi;Z031CA3C03;SALDO Fatt.n. 4PA  del 01/03/2017 INSTALLAZIONE CENTRALE TELEFONICA NEL COMUNE , BIBLIOTECA E SCUOLA MEDIA;25/03/2017;29113;3;402;2;Spese in conto capitale;5;Altre spese in conto capitale;99;Altre spese in conto capitale n.a.c.;99;Altre spese in conto capitale n.a.c.;999;Altre spese in conto capitale n.a.c.;25/03/2017
298;1;3.923,52;3.923,52;SANNA IRENEO;Z0B177A270;SALDO Fatt.n. FATTPA 4_17  del 08/03/2017;27/03/2017;30521;0;387;2;Spese in conto capitale;2;Investimenti fissi lordi e acquisto di terreni;1;Beni materiali;9;Beni immobili;2;Fabbricati ad uso commerciale;27/03/2017
299;1;73,25;250,15;ENEL ENERGIA SpA;ZA90D7BC4B;SALDO Fatt.n. 004800338621  del 08/03/2017;27/03/2017;1813;6;62;1;Spese correnti;3;Acquisto di beni e servizi;2;Acquisto di servizi;5;Utenze e canoni;4;Energia elettrica;27/03/2017
299;2;78,01;250,15;ENEL ENERGIA SpA;ZA90D7BC4B;SALDO Fatt.n. 004800338616  del 08/03/2017;27/03/2017;1813;6;62;1;Spese correnti;3;Acquisto di beni e servizi;2;Acquisto di servizi;5;Utenze e canoni;4;Energia elettrica;27/03/2017
299;3;99,89;250,15;ENEL ENERGIA SpA;ZA90D7BC4B;SALDO Fatt.n. 004800338614  del 08/03/2017;27/03/2017;1813;6;62;1;Spese correnti;3;Acquisto di beni e servizi;2;Acquisto di servizi;5;Utenze e canoni;4;Energia elettrica;27/03/2017
300;1;13,44;56,54;ENEL ENERGIA SpA;ZA90D7BC4B;SALDO Fatt.n. 004800338617  del 08/03/2017;27/03/2017;6221;2;63;1;Spese correnti;3;Acquisto di beni e servizi;2;Acquisto di servizi;5;Utenze e canoni;4;Energia elettrica;27/03/2017
300;2;42,1;56,54;ENEL ENERGIA SpA;ZA90D7BC4B;SALDO Fatt.n. 004800338618  del 08/03/2017;27/03/2017;6221;2;63;1;Spese correnti;3;Acquisto di beni e servizi;2;Acquisto di servizi;5;Utenze e canoni;4;Energia elettrica;27/03/2017
301;1;2.424,93;2.424,93;ENEL ENERGIA SpA;ZA90D7BC4B;SALDO Fatt.n. 004800334044  del 08/03/2017;27/03/2017;8237;1;37;1;Spese correnti;3;Acquisto di beni e servizi;2;Acquisto di servizi;5;Utenze e canoni;4;Energia elettrica;27/03/2017
302;1;95,5;95,5;E.N.E.L.   Servizio Elettrico S.p.A.; ;SALDO Fatt.n. 912031710722811  del 10/03/2017;27/03/2017;9563;4;64;1;Spese correnti;3;Acquisto di beni e servizi;2;Acquisto di servizi;5;Utenze e canoni;4;Energia elettrica;27/03/2017
303;1;1.446,24;1.446,24;E.N.E.L.   Servizio Elettrico S.p.A.; ;SALDO Fatt.n. 912030999890213  del 10/03/2017;27/03/2017;8237;1;38;1;Spese correnti;3;Acquisto di beni e servizi;2;Acquisto di servizi;5;Utenze e canoni;4;Energia elettrica;27/03/2017
304;1;399,87;10.370,43;SOI STEFANO - R.L. R.T.P. Soi-Anedda-Falchi;Z671CE964E;ACCONTO Fatt.n. 6/PA  del 22/03/2017;27/03/2017;30521;0;434;2;Spese in conto capitale;2;Investimenti fissi lordi e acquisto di terreni;1;Beni materiali;9;Beni immobili;2;Fabbricati ad uso commerciale;27/03/2017
304;2;9.972,56;10.370,43;SOI STEFANO - R.L. R.T.P. Soi-Anedda-Falchi;Z671CE964E;SALDO Fatt.n. 6/PA  del 22/03/2017;27/03/2017;30521;0;434;2;Spese in conto capitale;2;Investimenti fissi lordi e acquisto di terreni;1;Beni materiali;9;Beni immobili;2;Fabbricati ad uso commerciale;27/03/2017
305;1;399,87;10.370,43;ANEDDA FRANCESCO;Z671CE964E;ACCONTO Fatt.n. 6/PA  del 22/03/2017;27/03/2017;30521;0;434;2;Spese in conto capitale;2;Investimenti fissi lordi e acquisto di terreni;1;Beni materiali;9;Beni immobili;2;Fabbricati ad uso commerciale;27/03/2017
305;2;9.972,56;10.370,43;ANEDDA FRANCESCO;Z671CE964E;SALDO Fatt.n. 6/PA  del 22/03/2017;27/03/2017;30521;0;434;2;Spese in conto capitale;2;Investimenti fissi lordi e acquisto di terreni;1;Beni materiali;9;Beni immobili;2;Fabbricati ad uso commerciale;27/03/2017
306;1;505,23;13.047,08;CONSORZIO NETWORK ETICO TERRITORIAL SOC.COOP.SOC. ONLUS;6814470689;Fatt.n. 2/202  del 16/02/2017 MENSA SCOLASTICA E PASTI CALDI DICEMBRE;28/03/2017;4251;0;85;1;Spese correnti;3;Acquisto di beni e servizi;2;Acquisto di servizi;15;Contratti di servizio pubblico;6;Contratti di servizio per le mense scolastiche;28/03/2017
306;2;12.542,85;13.047,08;CONSORZIO NETWORK ETICO TERRITORIAL SOC.COOP.SOC. ONLUS;6814470689;Fatt.n. 2/203  del 16/02/2017 MENSA SCOLASTICA E PASTI CALDI GENNAIO 2017;28/03/2017;4251;0;85;1;Spese correnti;3;Acquisto di beni e servizi;2;Acquisto di servizi;15;Contratti di servizio pubblico;6;Contratti di servizio per le mense scolastiche;28/03/2017
307;1;270;17.967,00;CONSORZIO NETWORK ETICO TERRITORIAL SOC.COOP.SOC. ONLUS;6814470689;Fatt.n. 2/203  del 16/02/2017 MENSA SCOLASTICA E PASTI CALDI GENNAIO 2017;28/03/2017;4251;0;429;1;Spese correnti;3;Acquisto di beni e servizi;2;Acquisto di servizi;15;Contratti di servizio pubblico;6;Contratti di servizio per le mense scolastiche;28/03/2017
307;2;5.402,75;17.967,00;CONSORZIO NETWORK ETICO TERRITORIAL SOC.COOP.SOC. ONLUS;6814470689;Fatt.n. 2/200  del 16/02/2017 MENSA SCOLASTICA NOVEMBRE 2016;28/03/2017;4251;0;429;1;Spese correnti;3;Acquisto di beni e servizi;2;Acquisto di servizi;15;Contratti di servizio pubblico;6;Contratti di servizio per le mense scolastiche;28/03/2017
307;3;12.295,25;17.967,00;CONSORZIO NETWORK ETICO TERRITORIAL SOC.COOP.SOC. ONLUS;6814470689;Fatt.n. 2/202  del 16/02/2017 MENSA SCOLASTICA E PASTI CALDI DICEMBRE;28/03/2017;4251;0;429;1;Spese correnti;3;Acquisto di beni e servizi;2;Acquisto di servizi;15;Contratti di servizio pubblico;6;Contratti di servizio per le mense scolastiche;28/03/2017
308;1;0,12;382,01;CONSORZIO NETWORK ETICO TERRITORIAL SOC.COOP.SOC. ONLUS;6814470689;Fatt.n. 2/203  del 16/02/2017 MENSA SCOLASTICA E PASTI CALDI GENNAIO 2017;28/03/2017;10430;4;86;1;Spese correnti;3;Acquisto di beni e servizi;2;Acquisto di servizi;15;Contratti di servizio pubblico;999;Altre spese per contratti di servizio pubblico;28/03/2017
308;2;382,89;382,01;CONSORZIO NETWORK ETICO TERRITORIAL SOC.COOP.SOC. ONLUS;6814470689;Fatt.n. 2/203  del 16/02/2017 MENSA SCOLASTICA E PASTI CALDI GENNAIO 2017;28/03/2017;10430;4;86;1;Spese correnti;3;Acquisto di beni e servizi;2;Acquisto di servizi;15;Contratti di servizio pubblico;999;Altre spese per contratti di servizio pubblico;28/03/2017
309;1;164,3;164,3;CONSORZIO NETWORK ETICO TERRITORIAL SOC.COOP.SOC. ONLUS;6814470689;Fatt.n. 2/202  del 16/02/2017 MENSA SCOLASTICA E PASTI CALDI DICEMBRE;28/03/2017;10430;4;430;1;Spese correnti;3;Acquisto di beni e servizi;2;Acquisto di servizi;15;Contratti di servizio pubblico;9;Contratti di servizio di assistenza sociale domiciliare;28/03/2017
310;1;216,72;216,72;MURGIA OLIVIO;Z6317DAADD;SALDO Fatt.n. 07  del 28/06/2016 Saldo - RESTAURO CON INDAGINI E VERIFICHE STRUTTURALI PER LA RIAPERTURA AL CULTO DELLA CHIESA MADONNA DEL SACRO CUORE - CIG Z6317DAADD;29/03/2017;27111;8;415;2;Spese in conto capitale;2;Investimenti fissi lordi e acquisto di terreni;1;Beni materiali;9;Beni immobili;8;Opere destinate al culto;29/03/2017
311;1;101,1;101,1;ENEL ENERGIA SpA;ZA90D7BC4B;SALDO Fatt.n. 004800338615  del 08/03/2017;29/03/2017;6221;2;63;1;Spese correnti;3;Acquisto di beni e servizi;2;Acquisto di servizi;5;Utenze e canoni;4;Energia elettrica;29/03/2017
312;1;986,92;986,92;Soggetto tutelato dalla normativa sulla privacy; ;Progetto ritornare a casa- mese gennaio 2017 utente 01;31/03/2017;10472;3;89;1;Spese correnti;4;Trasferimenti correnti;2;Trasferimenti correnti a Famiglie;2;Interventi assistenziali;999;Altri assegni e sussidi assistenziali;31/03/2017
313;1;246,48;246,48;Soggetto tutelato dalla normativa sulla privacy; ;Progetto ritornare a casa- mese gennaio 2017 utente 01;31/03/2017;10473;4;90;1;Spese correnti;4;Trasferimenti correnti;2;Trasferimenti correnti a Famiglie;2;Interventi assistenziali;999;Altri assegni e sussidi assistenziali;31/03/2017
314;1;3.286,69;3.286,69;AUTONOLEGGIO DI COGOTZI PAOLO & C. snc;59157707D5;SALDO Fatt.n. 24 PA  del 28/02/2017 SERVIZIO TRASPORTO SCOLASTICO A.S 2016/2017  MESE FEBBRAIO 2017;31/03/2017;4311;10;419;1;Spese correnti;3;Acquisto di beni e servizi;2;Acquisto di servizi;15;Contratti di servizio pubblico;2;Contratti di servizio di trasporto scolastico;31/03/2017
315;1;19.500,79;19.500,79;COMUNITA' MONTANA  SARCIDANO - BARBAGIA DI SEULO; ;servizio convenzionato smaltimento rifiuti 2016 - mese ottobre - novembre - dicembre 2016;01/04/2017;9573;2;421;1;Spese correnti;4;Trasferimenti correnti;1;Trasferimenti correnti a Amministrazioni Pubbliche;2;Trasferimenti correnti a Amministrazioni Locali;6;Trasferimenti correnti a Comunit� Montane;01/04/2017
316;1;22.246,85;22.246,85;GEOM. PUTZU SEBASTIANO;651179680C;ACCONTO Fatt.n. FATTPA 8_17  del 22/03/2017;01/04/2017;29113;9;406;2;Spese in conto capitale;2;Investimenti fissi lordi e acquisto di terreni;2;Terreni e beni materiali non prodotti;2;Patrimonio naturale non prodotto;3;Foreste;01/04/2017
317;1;45,11;45,11;GEOM. PUTZU SEBASTIANO;651179680C;SALDO Fatt.n. FATTPA 8_17  del 22/03/2017;01/04/2017;29113;8;408;2;Spese in conto capitale;2;Investimenti fissi lordi e acquisto di terreni;2;Terreni e beni materiali non prodotti;2;Patrimonio naturale non prodotto;3;Foreste;01/04/2017
321;1;117,76;117,76;Soggetto tutelato dalla normativa sulla privacy; ;Proroga piani personalizzati L. 162/98 gestione indiretta assistenza generica ed educativa saldo ottobre novembr dicembre 2016;05/04/2017;10470;5;298;1;Spese correnti;4;Trasferimenti correnti;2;Trasferimenti correnti a Famiglie;2;Interventi assistenziali;999;Altri assegni e sussidi assistenziali;05/04/2017
322;1;937,05;937,05;Soggetto tutelato dalla normativa sulla privacy; ;Proroga piani personalizzati L. 162/98 gestione indiretta assistenza generica ed educativa periodo Proroga piani personalizzati L. 162/98  saldo ottobre novembre dicembre 2016.;05/04/2017;10470;5;285;1;Spese correnti;4;Trasferimenti correnti;2;Trasferimenti correnti a Famiglie;2;Interventi assistenziali;999;Altri assegni e sussidi assistenziali;05/04/2017
323;1;3.020,85;3.020,85;VIVAIO IL SENTIERO VERDE;ZB41C47812;ACCONTO Fatt.n. 1/A  del 08/03/2017;05/04/2017;29114;0;393;2;Spese in conto capitale;2;Investimenti fissi lordi e acquisto di terreni;1;Beni materiali;9;Beni immobili;14;Opere per la sistemazione del suolo;05/04/2017
324;1;5.780,15;5.780,15;VIVAIO IL SENTIERO VERDE;ZB41C47812;SALDO Fatt.n. 1/A  del 08/03/2017;05/04/2017;29113;3;394;2;Spese in conto capitale;5;Altre spese in conto capitale;99;Altre spese in conto capitale n.a.c.;99;Altre spese in conto capitale n.a.c.;999;Altre spese in conto capitale n.a.c.;05/04/2017
325;1;69.850,00;69.850,00;ICEA SRL;69680454A3;SALDO Fatt.n. FATTPA 7_17  del 29/03/2017;05/04/2017;30521;0;51;2;Spese in conto capitale;2;Investimenti fissi lordi e acquisto di terreni;1;Beni materiali;9;Beni immobili;2;Fabbricati ad uso commerciale;05/04/2017
326;1;6.505,48;6.505,48;ANEDDA FRANCESCO;Z671CE964E;SALDO Fatt.n. 7/PA  del 30/03/2017;05/04/2017;30521;0;434;2;Spese in conto capitale;2;Investimenti fissi lordi e acquisto di terreni;1;Beni materiali;9;Beni immobili;2;Fabbricati ad uso commerciale;05/04/2017
327;1;250,21;6.505,48;SOI STEFANO - R.L. R.T.P. Soi-Anedda-Falchi;Z671CE964E;ACCONTO Fatt.n. 8/PA  del 03/04/2017;05/04/2017;30521;0;434;2;Spese in conto capitale;2;Investimenti fissi lordi e acquisto di terreni;1;Beni materiali;9;Beni immobili;2;Fabbricati ad uso commerciale;05/04/2017
327;2;6.255,27;6.505,48;SOI STEFANO - R.L. R.T.P. Soi-Anedda-Falchi;Z671CE964E;SALDO Fatt.n. 8/PA  del 03/04/2017;05/04/2017;30521;0;434;2;Spese in conto capitale;2;Investimenti fissi lordi e acquisto di terreni;1;Beni materiali;9;Beni immobili;2;Fabbricati ad uso commerciale;05/04/2017
328;1;6,14;6,14;Gestore dei Servizi Energetici - GSE S.p.a.; ;SALDO Fatt.n. 11609  del 24/03/2017 CORRISPETTIVO A COPERTURA DEGLI ONERI DI GESTIONE CONVENZIONE: N03E09600207;08/04/2017;1813;6;92;1;Spese correnti;3;Acquisto di beni e servizi;2;Acquisto di servizi;5;Utenze e canoni;4;Energia elettrica;08/04/2017
329;1;519,5;519,5;I.S.M.A. di Melis Srl;ZD113C864E;ACCONTO Fatt.n. 180/EL  del 11/10/2016 MANUTENZIONE PERIODICA ESTINTORI;10/04/2017;8152;2;222;1;Spese correnti;3;Acquisto di beni e servizi;2;Acquisto di servizi;9;Manutenzione ordinaria e riparazioni;4;Manutenzione ordinaria e riparazioni di impianti e macchinari;10/04/2017
330;1;146,4;146,4;I.S.M.A. di Melis Srl;ZD113C864E;SALDO Fatt.n. 180/EL  del 11/10/2016 MANUTENZIONE PERIODICA ESTINTORI;10/04/2017;8152;2;222;1;Spese correnti;3;Acquisto di beni e servizi;2;Acquisto di servizi;9;Manutenzione ordinaria e riparazioni;4;Manutenzione ordinaria e riparazioni di impianti e macchinari;10/04/2017
331;1;0,01;143,52;TOTALERG S.P.A.;ZC4180339B;ACCONTO Fatt.n. I7128170  del 31/03/2017;10/04/2017;8123;1;40;1;Spese correnti;3;Acquisto di beni e servizi;1;Acquisto di beni;2;Altri beni di consumo;2;Carburanti, combustibili e lubrificanti;10/04/2017
331;2;143,51;143,52;TOTALERG S.P.A.;ZC4180339B;SALDO Fatt.n. I7128170  del 31/03/2017;10/04/2017;8123;1;40;1;Spese correnti;3;Acquisto di beni e servizi;1;Acquisto di beni;2;Altri beni di consumo;2;Carburanti, combustibili e lubrificanti;10/04/2017
332;1;0,3;0,3;ENEL ENERGIA SpA;ZA90D7BC4B;SALDO Fatt.n. 004800000203  del 02/01/2017;10/04/2017;8237;1;37;1;Spese correnti;3;Acquisto di beni e servizi;2;Acquisto di servizi;5;Utenze e canoni;4;Energia elettrica;10/04/2017
334;1;38.186,34;38.186,34;CONGLOMERATI BITUMINOSI S.R.L.;Z051C18AE3;ACCONTO Fatt.n. 17 /PA  del 28/03/2017 Fattura Cliente;12/04/2017;28112;21;370;2;Spese in conto capitale;2;Investimenti fissi lordi e acquisto di terreni;1;Beni materiali;9;Beni immobili;12;Infrastrutture stradali;12/04/2017
335;1;6.404,04;6.404,04;CONGLOMERATI BITUMINOSI S.R.L.;Z051C18AE3;SALDO Fatt.n. 17 /PA  del 28/03/2017 Fattura Cliente;12/04/2017;28112;9;405;2;Spese in conto capitale;2;Investimenti fissi lordi e acquisto di terreni;1;Beni materiali;9;Beni immobili;12;Infrastrutture stradali;12/04/2017
336;1;445,09;445,09;TREPERDUE Soc. Coop. Sociale;Z7718117E4;ACCONTO Fatt.n. 11/PA  del 04/02/2017;12/04/2017;10441;1;161;1;Spese correnti;3;Acquisto di beni e servizi;2;Acquisto di servizi;15;Contratti di servizio pubblico;999;Altre spese per contratti di servizio pubblico;12/04/2017
337;1;1.250,00;1.250,00;TREPERDUE Soc. Coop. Sociale;Z7718117E4;SALDO Fatt.n. 11/PA  del 04/02/2017;12/04/2017;10473;1;226;1;Spese correnti;4;Trasferimenti correnti;2;Trasferimenti correnti a Famiglie;2;Interventi assistenziali;999;Altri assegni e sussidi assistenziali;12/04/2017
338;1;476,8;476,8;SOLUZIONE SRL;ZD41828047;SALDO Fatt.n. 1.198  del 10/04/2017;12/04/2017;1312;1;31;1;Spese correnti;3;Acquisto di beni e servizi;2;Acquisto di servizi;99;Altri servizi;999;Altri servizi diversi n.a.c.;12/04/2017
339;1;1.972,84;1.972,84;Soggetto tutelato dalla normativa sulla privacy; ;Progetto ritornare a casa mesi febbraio marzo 2017;12/04/2017;10472;3;89;1;Spese correnti;4;Trasferimenti correnti;2;Trasferimenti correnti a Famiglie;2;Interventi assistenziali;999;Altri assegni e sussidi assistenziali;12/04/2017
340;1;493,96;493,96;Soggetto tutelato dalla normativa sulla privacy; ;Progetto Ritornare a casa mesi febbraio marzo 2017;12/04/2017;10473;4;90;1;Spese correnti;4;Trasferimenti correnti;2;Trasferimenti correnti a Famiglie;2;Interventi assistenziali;999;Altri assegni e sussidi assistenziali;12/04/2017
341;1;2.484,71;2.484,71;Soggetto tutelato dalla normativa sulla privacy; ;"Programma regionale ""Ritornare a casa"" L.R. 4/2006 Art. 17, comma 1 - Impegno di spesa per la VII annualita' a favore del beneficiario n.2  - periodo Giugno 2016/Maggio 2017";12/04/2017;10472;3;307;1;Spese correnti;4;Trasferimenti correnti;2;Trasferimenti correnti a Famiglie;2;Interventi assistenziali;999;Altri assegni e sussidi assistenziali;12/04/2017
342;1;621,93;621,93;Soggetto tutelato dalla normativa sulla privacy; ;"Programma regionale ""Ritornare a casa"" L.R. 4/2006 Art. 17, comma 1 - Impegno di spesa per la VII annualita' a favore del beneficiario n.2  - periodo Giugno 2016/Maggio 2017";12/04/2017;10473;4;455;1;Spese correnti;4;Trasferimenti correnti;2;Trasferimenti correnti a Famiglie;2;Interventi assistenziali;999;Altri assegni e sussidi assistenziali;12/04/2017
343;1;8.833,50;8.833,50;HALLEY SARDEGNA S.R.L.;ZE71B7EF04;SALDO Fatt.n. 0000302  del 27/03/2017;12/04/2017;25614;3;315;2;Spese in conto capitale;2;Investimenti fissi lordi e acquisto di terreni;1;Beni materiali;7;Hardware;1;Server;12/04/2017
344;1;23.790,52;23.790,52;SVILUPPO IMMOBILIARE SRLCR;6513557546;SALDO Fatt.n. FATTPA 9_17  del 09/04/2017;13/04/2017;29617;0;410;2;Spese in conto capitale;2;Investimenti fissi lordi e acquisto di terreni;1;Beni materiali;9;Beni immobili;14;Opere per la sistemazione del suolo;13/04/2017
345;1;487,9;3.640,51;Soggetto tutelato dalla normativa sulla privacy; ;Impegno e liquidazione provvidenze L. R. 20/97 periodo ottobre-dicembre 2016.;19/04/2017;10453;3;100;1;Spese correnti;4;Trasferimenti correnti;2;Trasferimenti correnti a Famiglie;2;Interventi assistenziali;999;Altri assegni e sussidi assistenziali;19/04/2017
345;2;68,1;3.640,51;Soggetto tutelato dalla normativa sulla privacy; ;Impegno e liquidazione provvidenze L. R. 20/97 periodo ottobre-dicembre 2016.;19/04/2017;10453;3;100;1;Spese correnti;4;Trasferimenti correnti;2;Trasferimenti correnti a Famiglie;2;Interventi assistenziali;999;Altri assegni e sussidi assistenziali;19/04/2017
345;3;526,35;3.640,51;Soggetto tutelato dalla normativa sulla privacy; ;Impegno e liquidazione provvidenze L. R. 20/97 periodo ottobre-dicembre 2016.;19/04/2017;10453;3;100;1;Spese correnti;4;Trasferimenti correnti;2;Trasferimenti correnti a Famiglie;2;Interventi assistenziali;999;Altri assegni e sussidi assistenziali;19/04/2017
345;4;1.469,86;3.640,51;Soggetto tutelato dalla normativa sulla privacy; ;Impegno e liquidazione provvidenze L. R. 20/97 periodo ottobre-dicembre 2016.;19/04/2017;10453;3;100;1;Spese correnti;4;Trasferimenti correnti;2;Trasferimenti correnti a Famiglie;2;Interventi assistenziali;999;Altri assegni e sussidi assistenziali;19/04/2017
345;5;530,62;3.640,51;Soggetto tutelato dalla normativa sulla privacy; ;Impegno e liquidazione provvidenze L. R. 20/97 periodo ottobre-dicembre 2016.;19/04/2017;10453;3;100;1;Spese correnti;4;Trasferimenti correnti;2;Trasferimenti correnti a Famiglie;2;Interventi assistenziali;999;Altri assegni e sussidi assistenziali;19/04/2017
345;6;560,68;3.640,51;Soggetto tutelato dalla normativa sulla privacy; ;Impegno e liquidazione provvidenze L. R. 20/97 periodo ottobre-dicembre 2016.;19/04/2017;10453;3;100;1;Spese correnti;4;Trasferimenti correnti;2;Trasferimenti correnti a Famiglie;2;Interventi assistenziali;999;Altri assegni e sussidi assistenziali;19/04/2017
346;1;231,76;231,76;Soggetto tutelato dalla normativa sulla privacy; ;Impegno e liquidazione provvidenze L. R. 20/97 periodo luglio-settembre 2016.;19/04/2017;10453;5;383;1;Spese correnti;4;Trasferimenti correnti;2;Trasferimenti correnti a Famiglie;2;Interventi assistenziali;999;Altri assegni e sussidi assistenziali;19/04/2017
347;1;1.050,42;1.050,42;ELETTROIMPIANTI DI FRONGIA ANTONIO GEROLAMO;ZEB1DF1F45;SALDO Fatt.n. 5E  del 29/03/2017 OPERE DI MANUTENZIONE STRAORDINARIA DELL'IMPIANTI ELETTRICI CIG ZEB1DF1F45  DETERMINA 52 DEL 17.03.2017;19/04/2017;29113;3;65;2;Spese in conto capitale;5;Altre spese in conto capitale;99;Altre spese in conto capitale n.a.c.;99;Altre spese in conto capitale n.a.c.;999;Altre spese in conto capitale n.a.c.;19/04/2017
348;1;553,11;553,11;ENEL ENERGIA SpA;ZA90D7BC4B;SALDO Fatt.n. 004800338613  del 08/03/2017;19/04/2017;4311;5;95;1;Spese correnti;3;Acquisto di beni e servizi;2;Acquisto di servizi;5;Utenze e canoni;4;Energia elettrica;19/04/2017
349;1;161,33;161,33;ENEL ENERGIA SpA;ZA90D7BC4B;SALDO Fatt.n. 004800338619  del 08/03/2017;19/04/2017;4247;1;96;1;Spese correnti;3;Acquisto di beni e servizi;2;Acquisto di servizi;5;Utenze e canoni;4;Energia elettrica;19/04/2017
350;1;1.018,75;1.018,75;ENEL ENERGIA SpA;ZA90D7BC4B;SALDO Fatt.n. 004800338612  del 08/03/2017;19/04/2017;1813;17;97;1;Spese correnti;3;Acquisto di beni e servizi;2;Acquisto di servizi;5;Utenze e canoni;4;Energia elettrica;19/04/2017
351;1;430,36;430,36;ENEL ENERGIA SpA;ZA90D7BC4B;SALDO Fatt.n. 004800338620  del 08/03/2017;19/04/2017;5122;4;98;1;Spese correnti;3;Acquisto di beni e servizi;2;Acquisto di servizi;5;Utenze e canoni;4;Energia elettrica;19/04/2017
352;1;4.145,00;4.145,00;GIUNONE SOCIETA' COOPERATIVA;673092897E;SALDO Fatt.n. 5/PA  del 31/03/2017 Vs dare per serv. gest.musei + serv aggiuntivi e centro@ll-in marzo 2017 - CIG 673092897E;19/04/2017;7219;1;209;1;Spese correnti;3;Acquisto di beni e servizi;2;Acquisto di servizi;15;Contratti di servizio pubblico;999;Altre spese per contratti di servizio pubblico;19/04/2017
353;1;890,18;890,18;TREPERDUE Soc. Coop. Sociale;Z7718117E4;ACCONTO Fatt.n. 29/PA  del 06/04/2017;19/04/2017;10441;1;161;1;Spese correnti;3;Acquisto di beni e servizi;2;Acquisto di servizi;15;Contratti di servizio pubblico;999;Altre spese per contratti di servizio pubblico;19/04/2017
354;1;1.695,09;1.695,09;TREPERDUE Soc. Coop. Sociale;Z7718117E4;SALDO Fatt.n. 31/PA  del 11/04/2017;19/04/2017;10473;1;226;1;Spese correnti;4;Trasferimenti correnti;2;Trasferimenti correnti a Famiglie;2;Interventi assistenziali;999;Altri assegni e sussidi assistenziali;19/04/2017
355;1;185,91;185,91;TREPERDUE Soc. Coop. Sociale;Z7718117E4;SALDO Fatt.n. 29/PA  del 06/04/2017;19/04/2017;10473;1;226;1;Spese correnti;4;Trasferimenti correnti;2;Trasferimenti correnti a Famiglie;2;Interventi assistenziali;999;Altri assegni e sussidi assistenziali;19/04/2017
356;1;3.286,69;3.286,69;AUTONOLEGGIO DI COGOTZI PAOLO & C. snc;59157707D5;SALDO Fatt.n. 44 PA  del 31/03/2017 SERVIZIO TRASPORTO SCOLASTICO A.S 2016/2017  MESE MARZO 2017;19/04/2017;4311;10;99;1;Spese correnti;3;Acquisto di beni e servizi;2;Acquisto di servizi;15;Contratti di servizio pubblico;2;Contratti di servizio di trasporto scolastico;19/04/2017
357;1;102,4;613,27;LACONI GIAN PIETRO; ;Approvazione graduatoria bando di concorso fornitura gratuita o semi-gratuita libri di testo a favore di studenti frequentanti le scuole secondarie di I e II grado. Fondi art. 27, Legge n. 448/1998. A.S  2016/2017;19/04/2017;4221;3;418;1;Spese correnti;3;Acquisto di beni e servizi;1;Acquisto di beni;1;Giornali, riviste e pubblicazioni;2;Pubblicazioni;19/04/2017
357;2;76,02;613,27;MARRAS MARIA VITALIA; ;Approvazione graduatoria bando di concorso fornitura gratuita o semi-gratuita libri di testo a favore di studenti frequentanti le scuole secondarie di I e II grado. Fondi art. 27, Legge n. 448/1998. A.S  2016/2017;19/04/2017;4221;3;418;1;Spese correnti;3;Acquisto di beni e servizi;1;Acquisto di beni;1;Giornali, riviste e pubblicazioni;2;Pubblicazioni;19/04/2017
357;3;278,6;613,27;MELEDDU MARIA BARBARA; ;Approvazione graduatoria bando di concorso fornitura gratuita o semi-gratuita libri di testo a favore di studenti frequentanti le scuole secondarie di I e II grado. Fondi art. 27, Legge n. 448/1998. A.S  2016/2017;19/04/2017;4221;3;418;1;Spese correnti;3;Acquisto di beni e servizi;1;Acquisto di beni;1;Giornali, riviste e pubblicazioni;2;Pubblicazioni;19/04/2017
357;4;86,9;613,27;PIRISI MARIA RITA; ;Approvazione graduatoria bando di concorso fornitura gratuita o semi-gratuita libri di testo a favore di studenti frequentanti le scuole secondarie di I e II grado. Fondi art. 27, Legge n. 448/1998. A.S  2016/2017;19/04/2017;4221;3;418;1;Spese correnti;3;Acquisto di beni e servizi;1;Acquisto di beni;1;Giornali, riviste e pubblicazioni;2;Pubblicazioni;19/04/2017
357;5;71,35;613,27;USAI VALENTINA; ;Approvazione graduatoria bando di concorso fornitura gratuita o semi-gratuita libri di testo a favore di studenti frequentanti le scuole secondarie di I e II grado. Fondi art. 27, Legge n. 448/1998. A.S  2016/2017;19/04/2017;4221;3;418;1;Spese correnti;3;Acquisto di beni e servizi;1;Acquisto di beni;1;Giornali, riviste e pubblicazioni;2;Pubblicazioni;19/04/2017
358;1;26,38;956,25;MARRAS MARIA VITALIA; ;Approvazione graduatoria fornitura libri di testo A.S. 2016/2017;19/04/2017;45123;3;421;1;Spese correnti;4;Trasferimenti correnti;2;Trasferimenti correnti a Famiglie;5;Altri trasferimenti a famiglie;999;Altri trasferimenti a famiglie n.a.c.;19/04/2017
358;2;149,25;956,25;PISEDDU MARCO; ;Approvazione graduatoria fornitura libri di testo A.S. 2016/2017;19/04/2017;45123;3;421;1;Spese correnti;4;Trasferimenti correnti;2;Trasferimenti correnti a Famiglie;5;Altri trasferimenti a famiglie;999;Altri trasferimenti a famiglie n.a.c.;19/04/2017
358;3;79,12;956,25;PITZALIS ROSA; ;Approvazione graduatoria fornitura libri di testo A.S. 2016/2017;19/04/2017;45123;3;421;1;Spese correnti;4;Trasferimenti correnti;2;Trasferimenti correnti a Famiglie;5;Altri trasferimenti a famiglie;999;Altri trasferimenti a famiglie n.a.c.;19/04/2017
358;4;93,75;956,25;PITZALIS ROSA; ;Approvazione graduatoria fornitura libri di testo A.S. 2016/2017;19/04/2017;45123;3;421;1;Spese correnti;4;Trasferimenti correnti;2;Trasferimenti correnti a Famiglie;5;Altri trasferimenti a famiglie;999;Altri trasferimenti a famiglie n.a.c.;19/04/2017
358;5;48,93;956,25;REGALBUTO ELENA ROSARIA; ;Approvazione graduatoria fornitura libri di testo A.S. 2016/2017;19/04/2017;45123;3;421;1;Spese correnti;4;Trasferimenti correnti;2;Trasferimenti correnti a Famiglie;5;Altri trasferimenti a famiglie;999;Altri trasferimenti a famiglie n.a.c.;19/04/2017
358;6;139,25;956,25;SEDDA GIORGIO; ;Approvazione graduatoria fornitura libri di testo A.S. 2016/2017;19/04/2017;45123;3;421;1;Spese correnti;4;Trasferimenti correnti;2;Trasferimenti correnti a Famiglie;5;Altri trasferimenti a famiglie;999;Altri trasferimenti a famiglie n.a.c.;19/04/2017
358;7;112,08;956,25;VINCI BALDUINO; ;Approvazione graduatoria fornitura libri di testo A.S. 2016/2017;19/04/2017;45123;3;421;1;Spese correnti;4;Trasferimenti correnti;2;Trasferimenti correnti a Famiglie;5;Altri trasferimenti a famiglie;999;Altri trasferimenti a famiglie n.a.c.;19/04/2017
358;8;309,49;956,25;VINCI BALDUINO; ;Approvazione graduatoria fornitura libri di testo A.S. 2016/2017;19/04/2017;45123;3;421;1;Spese correnti;4;Trasferimenti correnti;2;Trasferimenti correnti a Famiglie;5;Altri trasferimenti a famiglie;999;Altri trasferimenti a famiglie n.a.c.;19/04/2017
359;1;80;1.056,00;CONGIU VANESSA; ;Approvazione graduatoria provvisoria per contributi per il diritto allo studio. Borsa di studio rimborso spese didattiche A. S. 2015/2016( L. 62/2000 - L. R. 5/2015). Impegno di spesa.;19/04/2017;45123;2;365;1;Spese correnti;4;Trasferimenti correnti;2;Trasferimenti correnti a Famiglie;3;Borse di studio, dottorati di ricerca e contratti di formazione specialistica area medica;1;Borse di studio;19/04/2017
359;2;80;1.056,00;CONGIU VANESSA; ;Approvazione graduatoria provvisoria per contributi per il diritto allo studio. Borsa di studio rimborso spese didattiche A. S. 2015/2016( L. 62/2000 - L. R. 5/2015). Impegno di spesa.;19/04/2017;45123;2;365;1;Spese correnti;4;Trasferimenti correnti;2;Trasferimenti correnti a Famiglie;3;Borse di studio, dottorati di ricerca e contratti di formazione specialistica area medica;1;Borse di studio;19/04/2017
359;3;80;1.056,00;LACONI GIAN PIETRO; ;Approvazione graduatoria provvisoria per contributi per il diritto allo studio. Borsa di studio rimborso spese didattiche A. S. 2015/2016( L. 62/2000 - L. R. 5/2015). Impegno di spesa.;19/04/2017;45123;2;365;1;Spese correnti;4;Trasferimenti correnti;2;Trasferimenti correnti a Famiglie;3;Borse di studio, dottorati di ricerca e contratti di formazione specialistica area medica;1;Borse di studio;19/04/2017
359;4;80;1.056,00;LACONI GIAN PIETRO; ;Approvazione graduatoria provvisoria per contributi per il diritto allo studio. Borsa di studio rimborso spese didattiche A. S. 2015/2016( L. 62/2000 - L. R. 5/2015). Impegno di spesa.;19/04/2017;45123;2;365;1;Spese correnti;4;Trasferimenti correnti;2;Trasferimenti correnti a Famiglie;3;Borse di studio, dottorati di ricerca e contratti di formazione specialistica area medica;1;Borse di studio;19/04/2017
359;5;60;1.056,00;LOI VITALIA; ;Approvazione graduatoria provvisoria per contributi per il diritto allo studio. Borsa di studio rimborso spese didattiche A. S. 2015/2016( L. 62/2000 - L. R. 5/2015). Impegno di spesa.;19/04/2017;45123;2;365;1;Spese correnti;4;Trasferimenti correnti;2;Trasferimenti correnti a Famiglie;3;Borse di studio, dottorati di ricerca e contratti di formazione specialistica area medica;1;Borse di studio;19/04/2017
359;6;60;1.056,00;LOI VITALIA; ;Approvazione graduatoria provvisoria per contributi per il diritto allo studio. Borsa di studio rimborso spese didattiche A. S. 2015/2016( L. 62/2000 - L. R. 5/2015). Impegno di spesa.;19/04/2017;45123;2;365;1;Spese correnti;4;Trasferimenti correnti;2;Trasferimenti correnti a Famiglie;3;Borse di studio, dottorati di ricerca e contratti di formazione specialistica area medica;1;Borse di studio;19/04/2017
359;7;19,2;1.056,00;PISEDDU MARCO; ;Approvazione graduatoria provvisoria per contributi per il diritto allo studio. Borsa di studio rimborso spese didattiche A. S. 2015/2016( L. 62/2000 - L. R. 5/2015). Impegno di spesa.;19/04/2017;45123;2;365;1;Spese correnti;4;Trasferimenti correnti;2;Trasferimenti correnti a Famiglie;3;Borse di studio, dottorati di ricerca e contratti di formazione specialistica area medica;1;Borse di studio;19/04/2017
359;8;19,2;1.056,00;PISEDDU MARCO; ;Approvazione graduatoria provvisoria per contributi per il diritto allo studio. Borsa di studio rimborso spese didattiche A. S. 2015/2016( L. 62/2000 - L. R. 5/2015). Impegno di spesa.;19/04/2017;45123;2;365;1;Spese correnti;4;Trasferimenti correnti;2;Trasferimenti correnti a Famiglie;3;Borse di studio, dottorati di ricerca e contratti di formazione specialistica area medica;1;Borse di studio;19/04/2017
359;9;80;1.056,00;PISEDDU RITA; ;Approvazione graduatoria provvisoria per contributi per il diritto allo studio. Borsa di studio rimborso spese didattiche A. S. 2015/2016( L. 62/2000 - L. R. 5/2015). Impegno di spesa.;19/04/2017;45123;2;365;1;Spese correnti;4;Trasferimenti correnti;2;Trasferimenti correnti a Famiglie;3;Borse di studio, dottorati di ricerca e contratti di formazione specialistica area medica;1;Borse di studio;19/04/2017
359;10;19,2;1.056,00;PITZALIS ROSA; ;Approvazione graduatoria provvisoria per contributi per il diritto allo studio. Borsa di studio rimborso spese didattiche A. S. 2015/2016( L. 62/2000 - L. R. 5/2015). Impegno di spesa.;19/04/2017;45123;2;365;1;Spese correnti;4;Trasferimenti correnti;2;Trasferimenti correnti a Famiglie;3;Borse di studio, dottorati di ricerca e contratti di formazione specialistica area medica;1;Borse di studio;19/04/2017
359;11;19,2;1.056,00;PITZALIS ROSA; ;Approvazione graduatoria provvisoria per contributi per il diritto allo studio. Borsa di studio rimborso spese didattiche A. S. 2015/2016( L. 62/2000 - L. R. 5/2015). Impegno di spesa.;19/04/2017;45123;2;365;1;Spese correnti;4;Trasferimenti correnti;2;Trasferimenti correnti a Famiglie;3;Borse di studio, dottorati di ricerca e contratti di formazione specialistica area medica;1;Borse di studio;19/04/2017
359;12;60;1.056,00;PUGGIONI FRANCESCA; ;Approvazione graduatoria provvisoria per contributi per il diritto allo studio. Borsa di studio rimborso spese didattiche A. S. 2015/2016( L. 62/2000 - L. R. 5/2015). Impegno di spesa.;19/04/2017;45123;2;365;1;Spese correnti;4;Trasferimenti correnti;2;Trasferimenti correnti a Famiglie;3;Borse di studio, dottorati di ricerca e contratti di formazione specialistica area medica;1;Borse di studio;19/04/2017
359;13;19,2;1.056,00;REGALBUTO ELENA ROSARIA; ;Approvazione graduatoria provvisoria per contributi per il diritto allo studio. Borsa di studio rimborso spese didattiche A. S. 2015/2016( L. 62/2000 - L. R. 5/2015). Impegno di spesa.;19/04/2017;45123;2;365;1;Spese correnti;4;Trasferimenti correnti;2;Trasferimenti correnti a Famiglie;3;Borse di studio, dottorati di ricerca e contratti di formazione specialistica area medica;1;Borse di studio;19/04/2017
359;14;60;1.056,00;SERRA SIMONETTA; ;Approvazione graduatoria provvisoria per contributi per il diritto allo studio. Borsa di studio rimborso spese didattiche A. S. 2015/2016( L. 62/2000 - L. R. 5/2015). Impegno di spesa.;19/04/2017;45123;2;365;1;Spese correnti;4;Trasferimenti correnti;2;Trasferimenti correnti a Famiglie;3;Borse di studio, dottorati di ricerca e contratti di formazione specialistica area medica;1;Borse di studio;19/04/2017
359;15;60;1.056,00;SODDU ANNALISA; ;Approvazione graduatoria provvisoria per contributi per il diritto allo studio. Borsa di studio rimborso spese didattiche A. S. 2015/2016( L. 62/2000 - L. R. 5/2015). Impegno di spesa.;19/04/2017;45123;2;365;1;Spese correnti;4;Trasferimenti correnti;2;Trasferimenti correnti a Famiglie;3;Borse di studio, dottorati di ricerca e contratti di formazione specialistica area medica;1;Borse di studio;19/04/2017
359;16;60;1.056,00;SODDU ANNALISA; ;Approvazione graduatoria provvisoria per contributi per il diritto allo studio. Borsa di studio rimborso spese didattiche A. S. 2015/2016( L. 62/2000 - L. R. 5/2015). Impegno di spesa.;19/04/2017;45123;2;365;1;Spese correnti;4;Trasferimenti correnti;2;Trasferimenti correnti a Famiglie;3;Borse di studio, dottorati di ricerca e contratti di formazione specialistica area medica;1;Borse di studio;19/04/2017
359;17;60;1.056,00;USAI VALENTINA; ;Approvazione graduatoria provvisoria per contributi per il diritto allo studio. Borsa di studio rimborso spese didattiche A. S. 2015/2016( L. 62/2000 - L. R. 5/2015). Impegno di spesa.;19/04/2017;45123;2;365;1;Spese correnti;4;Trasferimenti correnti;2;Trasferimenti correnti a Famiglie;3;Borse di studio, dottorati di ricerca e contratti di formazione specialistica area medica;1;Borse di studio;19/04/2017
359;18;60;1.056,00;USAI VALENTINA; ;Approvazione graduatoria provvisoria per contributi per il diritto allo studio. Borsa di studio rimborso spese didattiche A. S. 2015/2016( L. 62/2000 - L. R. 5/2015). Impegno di spesa.;19/04/2017;45123;2;365;1;Spese correnti;4;Trasferimenti correnti;2;Trasferimenti correnti a Famiglie;3;Borse di studio, dottorati di ricerca e contratti di formazione specialistica area medica;1;Borse di studio;19/04/2017
359;19;80;1.056,00;ZUCCA EMANUELLA; ;Approvazione graduatoria provvisoria per contributi per il diritto allo studio. Borsa di studio rimborso spese didattiche A. S. 2015/2016( L. 62/2000 - L. R. 5/2015). Impegno di spesa.;19/04/2017;45123;2;365;1;Spese correnti;4;Trasferimenti correnti;2;Trasferimenti correnti a Famiglie;3;Borse di studio, dottorati di ricerca e contratti di formazione specialistica area medica;1;Borse di studio;19/04/2017
396;1;784,37;784,37;dipendenti comunali; ;STIPENDI MESE DI: APRILE 17;21/04/2017;1106;2;44;1;Spese correnti;3;Acquisto di beni e servizi;2;Acquisto di servizi;1;Organi e incarichi istituzionali dell'amministrazione;1;Organi istituzionali dell'amministrazione - Indennit�;21/04/2017
401;1;400;400;dipendenti comunali; ;Attivazione tirocinio di formazione e orientamento dal 07-11-2016 al 30-04-2017 e liquidazione mese di Marzo 2017;21/04/2017;1200;1;387;1;Spese correnti;4;Trasferimenti correnti;2;Trasferimenti correnti a Famiglie;3;Borse di studio, dottorati di ricerca e contratti di formazione specialistica area medica;4;Tirocini formativi;21/04/2017
404;1;6.159,08;6.159,08;HALLEY SARDEGNA S.R.L.;ZA61B9860A;SALDO Fatt.n. 0000367  del 07/04/2017 FORNITURA ATTREZZATURE INFORMATICHE;22/04/2017;25614;3;318;2;Spese in conto capitale;2;Investimenti fissi lordi e acquisto di terreni;1;Beni materiali;7;Hardware;999;Hardware n.a.c.;22/04/2017
405;1;517,35;517,35;Soggetto tutelato dalla normativa sulla privacy; ;Impegno e liquidazione provvidenze L. R. 9/2004 annualit 2016.;27/04/2017;10453;3;114;1;Spese correnti;4;Trasferimenti correnti;2;Trasferimenti correnti a Famiglie;2;Interventi assistenziali;999;Altri assegni e sussidi assistenziali;27/04/2017
406;1;159,13;159,13;Soggetto tutelato dalla normativa sulla privacy; ;impegno neoplasie;27/04/2017;10453;3;453;1;Spese correnti;4;Trasferimenti correnti;2;Trasferimenti correnti a Famiglie;2;Interventi assistenziali;999;Altri assegni e sussidi assistenziali;27/04/2017
407;1;47,6;47,6;Soggetto tutelato dalla normativa sulla privacy; ;Impegno e liquidazione provvidenze L. R. 27/83 mese di dicembre 2016.;27/04/2017;10453;3;115;1;Spese correnti;4;Trasferimenti correnti;2;Trasferimenti correnti a Famiglie;2;Interventi assistenziali;999;Altri assegni e sussidi assistenziali;27/04/2017
408;1;207,59;207,59;Soggetto tutelato dalla normativa sulla privacy; ;Impegno e liquidazione provvidenze L. R. 27/83 mese di dicembre 2016.;27/04/2017;10453;3;110;1;Spese correnti;4;Trasferimenti correnti;2;Trasferimenti correnti a Famiglie;2;Interventi assistenziali;999;Altri assegni e sussidi assistenziali;27/04/2017
409;1;155,94;155,94;Soggetto tutelato dalla normativa sulla privacy; ;Impegno e liquidazione provvidenze L. R. 27/83 mese di dicembre 2016.;27/04/2017;10453;3;111;1;Spese correnti;4;Trasferimenti correnti;2;Trasferimenti correnti a Famiglie;2;Interventi assistenziali;999;Altri assegni e sussidi assistenziali;27/04/2017
410;1;155,94;155,94;Soggetto tutelato dalla normativa sulla privacy; ;Impegno e liquidazione provvidenze L. R. 27/83 mese di dicembre 2016.;27/04/2017;10453;3;112;1;Spese correnti;4;Trasferimenti correnti;2;Trasferimenti correnti a Famiglie;2;Interventi assistenziali;999;Altri assegni e sussidi assistenziali;27/04/2017
411;1;192,7;192,7;Soggetto tutelato dalla normativa sulla privacy; ;Impegno e liquidazione provvidenze L. R. 27/83 mese di dicembre 2016.;27/04/2017;10453;3;113;1;Spese correnti;4;Trasferimenti correnti;2;Trasferimenti correnti a Famiglie;2;Interventi assistenziali;999;Altri assegni e sussidi assistenziali;27/04/2017
412;1;85;85;A.N.C.I. ASSOCIAZIONE NAZ. COMUNI ITALIANI; ;IMPEGNO SPESA  E LIQUIDAZIONE QUOTA ASSOCIATIVA ANCI ANNO 2017;29/04/2017;1830;1;125;1;Spese correnti;3;Acquisto di beni e servizi;2;Acquisto di servizi;99;Altri servizi;3;Quote di associazioni;29/04/2017
413;1;365,77;365,77;ALD AUTOMOTIVE ITALIA SRL;5104930181;SALDO Fatt.n. INRF138715  del 31/03/2017;29/04/2017;10441;8;42;1;Spese correnti;3;Acquisto di beni e servizi;2;Acquisto di servizi;7;Utilizzo di beni di terzi;2;Noleggi di mezzi di trasporto;29/04/2017
414;1;365,77;365,77;ALD AUTOMOTIVE ITALIA SRL;5104930181;SALDO Fatt.n. INRF089992  del 28/02/2017;29/04/2017;10441;8;42;1;Spese correnti;3;Acquisto di beni e servizi;2;Acquisto di servizi;7;Utilizzo di beni di terzi;2;Noleggi di mezzi di trasporto;29/04/2017
415;1;2.405,83;2.405,83;ENEL ENERGIA SpA;ZA90D7BC4B;SALDO Fatt.n. 004800470932  del 07/04/2017;29/04/2017;8237;1;37;1;Spese correnti;3;Acquisto di beni e servizi;2;Acquisto di servizi;5;Utenze e canoni;4;Energia elettrica;29/04/2017
416;1;13,44;13,44;ENEL ENERGIA SpA;ZA90D7BC4B;SALDO Fatt.n. 004800469866  del 07/04/2017;29/04/2017;6221;2;63;1;Spese correnti;3;Acquisto di beni e servizi;2;Acquisto di servizi;5;Utenze e canoni;4;Energia elettrica;29/04/2017
417;1;37,78;198,59;E.N.E.L.   Servizio Elettrico S.p.A.; ;SALDO Fatt.n. 912030301701527  del 10/04/2017;29/04/2017;1813;6;42;1;Spese correnti;3;Acquisto di beni e servizi;2;Acquisto di servizi;5;Utenze e canoni;4;Energia elettrica;29/04/2017
417;2;161,81;198,59;E.N.E.L.   Servizio Elettrico S.p.A.; ;SALDO Fatt.n. 912030171708814  del 10/04/2017;29/04/2017;1813;6;42;1;Spese correnti;3;Acquisto di beni e servizi;2;Acquisto di servizi;5;Utenze e canoni;4;Energia elettrica;29/04/2017
418;1;1.444,24;1.444,24;E.N.E.L.   Servizio Elettrico S.p.A.; ;SALDO Fatt.n. 912030999890214  del 10/04/2017;29/04/2017;8237;1;38;1;Spese correnti;3;Acquisto di beni e servizi;2;Acquisto di servizi;5;Utenze e canoni;4;Energia elettrica;29/04/2017
419;1;37,78;37,78;E.N.E.L.   Servizio Elettrico S.p.A.; ;SALDO Fatt.n. 912031051703126  del 10/04/2017;29/04/2017;6221;2;43;1;Spese correnti;3;Acquisto di beni e servizi;2;Acquisto di servizi;5;Utenze e canoni;4;Energia elettrica;29/04/2017
420;1;11.852,62;11.852,62;ASSOCIAZIONE PRO LOCO CESARINO PISEDDU; ;LIQUID. ACCONTO CONTRIBUTO 2017;29/04/2017;5249;2;127;1;Spese correnti;4;Trasferimenti correnti;4;Trasferimenti correnti a Istituzioni Sociali Private;1;Trasferimenti correnti a Istituzioni Sociali Private;1;Trasferimenti correnti a Istituzioni Sociali Private;29/04/2017
421;1;3.063,50;3.063,50;ASSOCIAZIONE PRO LOCO CESARINO PISEDDU; ;LIQUID. ACONTO CONTRIBUTO 2017;29/04/2017;5225;2;126;1;Spese correnti;4;Trasferimenti correnti;4;Trasferimenti correnti a Istituzioni Sociali Private;1;Trasferimenti correnti a Istituzioni Sociali Private;1;Trasferimenti correnti a Istituzioni Sociali Private;29/04/2017
422;1;184,33;184,33;CONGLOMERATI BITUMINOSI S.R.L.;Z051C18AE3;SALDO Fatt.n. 31 /PA  del 26/04/2017 Fattura Cliente;04/05/2017;28112;9;405;2;Spese in conto capitale;2;Investimenti fissi lordi e acquisto di terreni;1;Beni materiali;9;Beni immobili;12;Infrastrutture stradali;04/05/2017
423;1;70,54;70,54;Grafiche E. GASPARI s.r.l.;Z1F1B58652;SALDO Fatt.n. 02542  del 20/03/2017;04/05/2017;1711;2;310;1;Spese correnti;3;Acquisto di beni e servizi;1;Acquisto di beni;2;Altri beni di consumo;1;Carta, cancelleria e stampati;04/05/2017
427;1;19,01;19,01;Soggetto tutelato dalla normativa sulla privacy; ;Liquid. rimborso spese GENNAIO MARZO 2017  e contr. previdenziali;05/05/2017;10470;5;91;1;Spese correnti;4;Trasferimenti correnti;2;Trasferimenti correnti a Famiglie;2;Interventi assistenziali;999;Altri assegni e sussidi assistenziali;05/05/2017
428;1;6,35;6,35;Soggetto tutelato dalla normativa sulla privacy; ;Liquid. rimborso spese GENNAIO MARZO 2017  e contr. previdenziali;05/05/2017;10470;5;284;1;Spese correnti;4;Trasferimenti correnti;2;Trasferimenti correnti a Famiglie;2;Interventi assistenziali;999;Altri assegni e sussidi assistenziali;05/05/2017
429;1;414,53;414,53;Soggetto tutelato dalla normativa sulla privacy; ;Liquid. rimborso spese GENNAIO MARZO 2017  e contr. previdenziali;05/05/2017;10470;5;130;1;Spese correnti;4;Trasferimenti correnti;2;Trasferimenti correnti a Famiglie;2;Interventi assistenziali;999;Altri assegni e sussidi assistenziali;05/05/2017
430;1;135,54;135,54;Soggetto tutelato dalla normativa sulla privacy; ;Liquid. rimborso spese GENNAIO MARZO 2017  e contr. previdenziali;05/05/2017;10470;5;93;1;Spese correnti;4;Trasferimenti correnti;2;Trasferimenti correnti a Famiglie;2;Interventi assistenziali;999;Altri assegni e sussidi assistenziali;05/05/2017
431;1;228,41;228,41;Soggetto tutelato dalla normativa sulla privacy; ;Liquid. rimborso spese GENNAIO MARZO 2017  e contr. previdenziali;05/05/2017;10470;5;132;1;Spese correnti;4;Trasferimenti correnti;2;Trasferimenti correnti a Famiglie;2;Interventi assistenziali;999;Altri assegni e sussidi assistenziali;05/05/2017
432;1;1.320,00;1.320,00;Soggetto tutelato dalla normativa sulla privacy; ;Liquid. rimborso spese GENNAIO APRILE 2017;05/05/2017;10470;5;134;1;Spese correnti;4;Trasferimenti correnti;2;Trasferimenti correnti a Famiglie;2;Interventi assistenziali;999;Altri assegni e sussidi assistenziali;05/05/2017
433;1;536,91;536,91;Soggetto tutelato dalla normativa sulla privacy; ;Liquid. rimborso spese GENNAIO MARZO 2017  e contr. previdenziali;05/05/2017;10470;5;135;1;Spese correnti;4;Trasferimenti correnti;2;Trasferimenti correnti a Famiglie;2;Interventi assistenziali;999;Altri assegni e sussidi assistenziali;05/05/2017
434;1;468,34;468,34;Soggetto tutelato dalla normativa sulla privacy; ;Liquid. rimborso spese GENNAIO MARZO 2017  e contr. previdenziali;05/05/2017;10470;5;136;1;Spese correnti;4;Trasferimenti correnti;2;Trasferimenti correnti a Famiglie;2;Interventi assistenziali;999;Altri assegni e sussidi assistenziali;05/05/2017
435;1;745,37;745,37;Soggetto tutelato dalla normativa sulla privacy; ;Liquid. rimborso spese GENNAIO APRILE 2017  e contr. previdenziali;05/05/2017;10470;5;137;1;Spese correnti;4;Trasferimenti correnti;2;Trasferimenti correnti a Famiglie;2;Interventi assistenziali;999;Altri assegni e sussidi assistenziali;05/05/2017
436;1;2.000,00;2.000,00;Soggetto tutelato dalla normativa sulla privacy; ;Liquid. rimborso spese GENNAIO APRILE 2017;05/05/2017;10470;9;128;1;Spese correnti;4;Trasferimenti correnti;2;Trasferimenti correnti a Famiglie;2;Interventi assistenziali;999;Altri assegni e sussidi assistenziali;05/05/2017
437;1;190,23;190,23;Soggetto tutelato dalla normativa sulla privacy; ;Liquid. rimborso spese GENNAIO FEBBRAIO 2017;05/05/2017;10470;5;294;1;Spese correnti;4;Trasferimenti correnti;2;Trasferimenti correnti a Famiglie;2;Interventi assistenziali;999;Altri assegni e sussidi assistenziali;05/05/2017
438;1;246,36;246,36;Soggetto tutelato dalla normativa sulla privacy; ;Liquid. rimborso spese GENNAIO FEBBRAO 2017;05/05/2017;10470;5;138;1;Spese correnti;4;Trasferimenti correnti;2;Trasferimenti correnti a Famiglie;2;Interventi assistenziali;999;Altri assegni e sussidi assistenziali;05/05/2017
439;1;1.000,00;1.000,00;Soggetto tutelato dalla normativa sulla privacy; ;Liquid. rimborso spese GENNAIO APRILE 2017  e contr. previdenziali;05/05/2017;10470;5;139;1;Spese correnti;4;Trasferimenti correnti;2;Trasferimenti correnti a Famiglie;2;Interventi assistenziali;999;Altri assegni e sussidi assistenziali;05/05/2017
440;1;500;500;Soggetto tutelato dalla normativa sulla privacy; ;Liquid. rimborso spese GENNAIO APRILE 2017;05/05/2017;10470;5;141;1;Spese correnti;4;Trasferimenti correnti;2;Trasferimenti correnti a Famiglie;2;Interventi assistenziali;999;Altri assegni e sussidi assistenziali;05/05/2017
441;1;528;528;Soggetto tutelato dalla normativa sulla privacy; ;Liquid. rimborso spese GENNAIO MARZO 2017  e contr. previdenziali;05/05/2017;10470;5;147;1;Spese correnti;4;Trasferimenti correnti;2;Trasferimenti correnti a Famiglie;2;Interventi assistenziali;999;Altri assegni e sussidi assistenziali;05/05/2017
442;1;123,15;123,15;Soggetto tutelato dalla normativa sulla privacy; ;Liquid. rimborso spese GENNAIO MARZO 2017  e contr. previdenziali;05/05/2017;10470;5;298;1;Spese correnti;4;Trasferimenti correnti;2;Trasferimenti correnti a Famiglie;2;Interventi assistenziali;999;Altri assegni e sussidi assistenziali;05/05/2017
443;1;650,62;650,62;Soggetto tutelato dalla normativa sulla privacy; ;Liquid. rimborso spese GENNAIO MARZO 2017  e contr. previdenziali;05/05/2017;10470;5;142;1;Spese correnti;4;Trasferimenti correnti;2;Trasferimenti correnti a Famiglie;2;Interventi assistenziali;999;Altri assegni e sussidi assistenziali;05/05/2017
444;1;73,66;73,66;Soggetto tutelato dalla normativa sulla privacy; ;Liquid. rimborso spese GENNAIO FEBBRAIO 2017;05/05/2017;10470;5;301;1;Spese correnti;4;Trasferimenti correnti;2;Trasferimenti correnti a Famiglie;2;Interventi assistenziali;999;Altri assegni e sussidi assistenziali;05/05/2017
445;1;145,53;145,53;Soggetto tutelato dalla normativa sulla privacy; ;Liquid. rimborso spese GENNAIO FEBBRAIO 2017;05/05/2017;10470;5;143;1;Spese correnti;4;Trasferimenti correnti;2;Trasferimenti correnti a Famiglie;2;Interventi assistenziali;999;Altri assegni e sussidi assistenziali;05/05/2017
446;1;344,47;344,47;Soggetto tutelato dalla normativa sulla privacy;;Liquid. rimborso spese GENNAIO MARZO APRILE 2017;05/05/2017;10470;5;302;1;Spese correnti;4;Trasferimenti correnti;2;Trasferimenti correnti a Famiglie;2;Interventi assistenziali;999;Altri assegni e sussidi assistenziali;05/05/2017
447;1;218,03;218,03;Soggetto tutelato dalla normativa sulla privacy; ;Liquid. rimborso spese GENNAIO MARZO APRILE 2017;05/05/2017;10470;5;144;1;Spese correnti;4;Trasferimenti correnti;2;Trasferimenti correnti a Famiglie;2;Interventi assistenziali;999;Altri assegni e sussidi assistenziali;05/05/2017
448;1;19,68;19,68;Soggetto tutelato dalla normativa sulla privacy; ;Liquid. rimborso spese GENNAIO MARZO 2017  e contr. previdenziali;05/05/2017;10470;5;303;1;Spese correnti;4;Trasferimenti correnti;2;Trasferimenti correnti a Famiglie;2;Interventi assistenziali;999;Altri assegni e sussidi assistenziali;05/05/2017
449;1;450,31;450,31;Soggetto tutelato dalla normativa sulla privacy; ;Liquid. rimborso spese GENNAIO MARZO 2017  e contr. previdenziali;05/05/2017;10470;5;145;1;Spese correnti;4;Trasferimenti correnti;2;Trasferimenti correnti a Famiglie;2;Interventi assistenziali;999;Altri assegni e sussidi assistenziali;05/05/2017
450;1;33,54;33,54;Soggetto tutelato dalla normativa sulla privacy; ;Liquid. rimborso spese GENNAIO MARZO 2017  e contr. previdenziali;05/05/2017;10470;5;113;1;Spese correnti;4;Trasferimenti correnti;2;Trasferimenti correnti a Famiglie;2;Interventi assistenziali;999;Altri assegni e sussidi assistenziali;05/05/2017
451;1;436,45;436,45;Soggetto tutelato dalla normativa sulla privacy; ;Liquid. rimborso spese GENNAIO MARZO 2017  e contr. previdenziali;05/05/2017;10470;5;146;1;Spese correnti;4;Trasferimenti correnti;2;Trasferimenti correnti a Famiglie;2;Interventi assistenziali;999;Altri assegni e sussidi assistenziali;05/05/2017
452;1;115,88;115,88;Soggetto tutelato dalla normativa sulla privacy; ;Liquid. rimborso spese GENNAIO FEBBRAIO 2017;05/05/2017;10470;5;105;1;Spese correnti;4;Trasferimenti correnti;2;Trasferimenti correnti a Famiglie;2;Interventi assistenziali;999;Altri assegni e sussidi assistenziali;05/05/2017
453;1;340,12;340,12;Soggetto tutelato dalla normativa sulla privacy; ;Liquid. rimborso spese GENNAIO FEBBRAIO 2017;05/05/2017;10470;5;140;1;Spese correnti;4;Trasferimenti correnti;2;Trasferimenti correnti a Famiglie;2;Interventi assistenziali;999;Altri assegni e sussidi assistenziali;05/05/2017
454;1;3.000,00;3.000,00;CONSORZIO TURISTICO SA PERDA 'E IDDOCCA; ;Quota consortile anno 2017;06/05/2017;7218;3;54;1;Spese correnti;4;Trasferimenti correnti;1;Trasferimenti correnti a Amministrazioni Pubbliche;2;Trasferimenti correnti a Amministrazioni Locali;18;Trasferimenti correnti a Consorzi di enti locali;06/05/2017
455;1;0,05;567,3;Libreria L'Arcobaleno di Muggianu Rosanna;ZED1CA2CA5;ACCONTO Fatt.n. 181B  del 28/03/2017 fornitura libri biblioteca comunale;06/05/2017;4221;6;443;1;Spese correnti;3;Acquisto di beni e servizi;1;Acquisto di beni;1;Giornali, riviste e pubblicazioni;2;Pubblicazioni;06/05/2017
455;2;0,11;567,3;Libreria L'Arcobaleno di Muggianu Rosanna;ZED1CA2CA5;ACCONTO Fatt.n. 180B  del 28/03/2017 Fornitura linri e dvd per la biblioteca comunale;06/05/2017;4221;6;443;1;Spese correnti;3;Acquisto di beni e servizi;1;Acquisto di beni;1;Giornali, riviste e pubblicazioni;2;Pubblicazioni;06/05/2017
455;3;178,74;567,3;Libreria L'Arcobaleno di Muggianu Rosanna;ZED1CA2CA5;SALDO Fatt.n. 180B  del 28/03/2017 Fornitura linri e dvd per la biblioteca comunale;06/05/2017;4221;6;443;1;Spese correnti;3;Acquisto di beni e servizi;1;Acquisto di beni;1;Giornali, riviste e pubblicazioni;2;Pubblicazioni;06/05/2017
455;4;389,4;567,3;Libreria L'Arcobaleno di Muggianu Rosanna;ZED1CA2CA5;SALDO Fatt.n. 181B  del 28/03/2017 fornitura libri biblioteca comunale;06/05/2017;4221;6;443;1;Spese correnti;3;Acquisto di beni e servizi;1;Acquisto di beni;1;Giornali, riviste e pubblicazioni;2;Pubblicazioni;06/05/2017
456;1;814,77;814,77;SARDA RETI GAS srl;ZEB0D7BD6A;SALDO Fatt.n. 2017-VEL2-0000032  del 28/02/2017 consumo gas centro sociale;06/05/2017;5122;3;148;1;Spese correnti;3;Acquisto di beni e servizi;2;Acquisto di servizi;5;Utenze e canoni;6;Gas;06/05/2017
457;1;1.844,34;1.844,34;SARDA RETI GAS srl;ZEB0D7BD6A;SALDO Fatt.n. 2017-VEL2-0000033  del 28/02/2017 consumo gas scuole medie;06/05/2017;4311;16;149;1;Spese correnti;3;Acquisto di beni e servizi;2;Acquisto di servizi;5;Utenze e canoni;6;Gas;06/05/2017
458;1;4.145,00;4.145,00;GIUNONE SOCIETA' COOPERATIVA;673092897E;SALDO Fatt.n. 9/PA  del 29/04/2017 Vs dare per serv. gest.musei + serv aggiuntivi e centro@ll-in Aprile 2017 - CIG 673092897E;06/05/2017;7219;1;209;1;Spese correnti;3;Acquisto di beni e servizi;2;Acquisto di servizi;15;Contratti di servizio pubblico;999;Altre spese per contratti di servizio pubblico;06/05/2017
459;1;986,92;986,92;Soggetto tutelato dalla normativa sulla privacy; ;Progetto ritornare a casa;09/05/2017;10472;3;89;1;Spese correnti;4;Trasferimenti correnti;2;Trasferimenti correnti a Famiglie;2;Interventi assistenziali;999;Altri assegni e sussidi assistenziali;09/05/2017
460;1;246,48;246,48;Soggetto tutelato dalla normativa sulla privacy; ;Progetto Ritornare a casa;09/05/2017;10473;4;90;1;Spese correnti;4;Trasferimenti correnti;2;Trasferimenti correnti a Famiglie;2;Interventi assistenziali;999;Altri assegni e sussidi assistenziali;09/05/2017
461;1;2.031,30;2.031,30;GREEN OLY;ZBF14124CD;SALDO Fatt.n. 03/E/2017  del 02/05/2017 SALDO FATTURA;09/05/2017;8144;1;98;1;Spese correnti;3;Acquisto di beni e servizi;2;Acquisto di servizi;15;Contratti di servizio pubblico;999;Altre spese per contratti di servizio pubblico;09/05/2017
462;1;133,85;133,85;TELECOM ITALIA  S.p.A.; ;SALDO Fatt.n. 8R00031952  del 06/02/2017 2BIM 2017;09/05/2017;4311;15;150;1;Spese correnti;3;Acquisto di beni e servizi;2;Acquisto di servizi;5;Utenze e canoni;1;Telefonia fissa;09/05/2017
463;1;3.286,69;3.286,69;AUTONOLEGGIO DI COGOTZI PAOLO & C. snc;59157707D5;SALDO Fatt.n. 80 PA  del 30/04/2017 SERVIZIO TRASPORTO SCOLASTICO A.S 2016/2017  MESE APRILE 2017;09/05/2017;4311;10;99;1;Spese correnti;3;Acquisto di beni e servizi;2;Acquisto di servizi;15;Contratti di servizio pubblico;2;Contratti di servizio di trasporto scolastico;09/05/2017
464;1;2.918,24;2.918,24;LATTI PAOLO;Z441A93E20;SALDO Fatt.n. FATTPA 7_17  del 03/05/2017;09/05/2017;25110;2;402;2;Spese in conto capitale;2;Investimenti fissi lordi e acquisto di terreni;1;Beni materiali;9;Beni immobili;1;Fabbricati ad uso abitativo;09/05/2017
465;1;245,21;245,21;TELECOM ITALIA  S.p.A.; ;ACCONTO Fatt.n. 4220717800005159  del 06/02/2017 2BIM 2017;09/05/2017;5122;2;151;1;Spese correnti;3;Acquisto di beni e servizi;2;Acquisto di servizi;5;Utenze e canoni;1;Telefonia fissa;09/05/2017
466;1;415,43;415,43;TELECOM ITALIA  S.p.A.; ;SALDO Fatt.n. 4220717800005159  del 06/02/2017 2BIM 2017;09/05/2017;1813;10;41;1;Spese correnti;3;Acquisto di beni e servizi;2;Acquisto di servizi;5;Utenze e canoni;1;Telefonia fissa;09/05/2017
467;1;16.169,65;32.785,12;CONSORZIO NETWORK ETICO TERRITORIAL SOC.COOP.SOC. ONLUS;6814470689;Fatt.n. 2/396  del 14/03/2017 SERVIZIO MENSA E PASTI CALDI FEBRAIO 2017;12/05/2017;4251;0;85;1;Spese correnti;3;Acquisto di beni e servizi;2;Acquisto di servizi;15;Contratti di servizio pubblico;6;Contratti di servizio per le mense scolastiche;12/05/2017
467;2;16.616,47;32.785,12;CONSORZIO NETWORK ETICO TERRITORIAL SOC.COOP.SOC. ONLUS;6814470689;Fatt.n. 2/586  del 19/04/2017 GESTIONE MENSA  E PATI CALDI MARZO 2017;12/05/2017;4251;0;85;1;Spese correnti;3;Acquisto di beni e servizi;2;Acquisto di servizi;15;Contratti di servizio pubblico;6;Contratti di servizio per le mense scolastiche;12/05/2017
468;1;1.002,46;2.260,51;CONSORZIO NETWORK ETICO TERRITORIAL SOC.COOP.SOC. ONLUS;6814470689;Fatt.n. 2/396  del 14/03/2017 SERVIZIO MENSA E PASTI CALDI FEBRAIO 2017;12/05/2017;10430;4;86;1;Spese correnti;3;Acquisto di beni e servizi;2;Acquisto di servizi;15;Contratti di servizio pubblico;999;Altre spese per contratti di servizio pubblico;12/05/2017
468;2;1.257,05;2.260,51;CONSORZIO NETWORK ETICO TERRITORIAL SOC.COOP.SOC. ONLUS;6814470689;Fatt.n. 2/586  del 19/04/2017 GESTIONE MENSA  E PATI CALDI MARZO 2017;12/05/2017;10430;4;86;1;Spese correnti;3;Acquisto di beni e servizi;2;Acquisto di servizi;15;Contratti di servizio pubblico;999;Altre spese per contratti di servizio pubblico;12/05/2017
469;1;487,9;487,9;Soggetto tutelato dalla normativa sulla privacy; ;Provvidenza L.R. 20/97 -  periodo ottobre/dicembre 2016 - Det. n. 83 del 18/04/2017;13/05/2017;10453;3;0;1;Spese correnti;4;Trasferimenti correnti;2;Trasferimenti correnti a Famiglie;2;Interventi assistenziali;999;Altri assegni e sussidi assistenziali;13/05/2017
470;1;1.317,96;1.317,96;PUTZOLU SALVATORE SAS;Z741DCBEAE;SALDO Fatt.n. 29  del 20/03/2017 Edifici Comunali;13/05/2017;1812;2;93;1;Spese correnti;3;Acquisto di beni e servizi;1;Acquisto di beni;2;Altri beni di consumo;2;Carburanti, combustibili e lubrificanti;13/05/2017
471;1;37,83;82,91;ABBANOA  s.p.a; ;SALDO Fatt.n. 2017000690006078  del 21/04/2017 Il versamento deve essere effettuato tramite bonifico in favore di Abbanoa Spa indicando il nominativo del titolare dell'utenza, il codice cliente, il codice PDE ed il numero fattura;13/05/2017;6221;3;153;1;Spese correnti;3;Acquisto di beni e servizi;2;Acquisto di servizi;5;Utenze e canoni;5;Acqua;13/05/2017
471;2;45,08;82,91;ABBANOA  s.p.a; ;SALDO Fatt.n. 2017000690005924  del 21/04/2017 Il versamento deve essere effettuato tramite bonifico in favore di Abbanoa Spa indicando il nominativo del titolare dell'utenza, il codice cliente, il codice PDE ed il numero fattura;13/05/2017;6221;3;153;1;Spese correnti;3;Acquisto di beni e servizi;2;Acquisto di servizi;5;Utenze e canoni;5;Acqua;13/05/2017
472;1;39,33;313,13;ABBANOA  s.p.a; ;SALDO Fatt.n. 2017000690005922  del 21/04/2017 Il versamento deve essere effettuato tramite bonifico in favore di Abbanoa Spa indicando il nominativo del titolare dell'utenza, il codice cliente, il codice PDE ed il numero fattura;13/05/2017;1813;14;154;1;Spese correnti;3;Acquisto di beni e servizi;2;Acquisto di servizi;5;Utenze e canoni;5;Acqua;13/05/2017
472;2;40,59;313,13;ABBANOA  s.p.a; ;SALDO Fatt.n. 2017000690005926  del 21/04/2017 Il versamento deve essere effettuato tramite bonifico in favore di Abbanoa Spa indicando il nominativo del titolare dell'utenza, il codice cliente, il codice PDE ed il numero fattura;13/05/2017;1813;14;154;1;Spese correnti;3;Acquisto di beni e servizi;2;Acquisto di servizi;5;Utenze e canoni;5;Acqua;13/05/2017
472;3;234,21;313,13;ABBANOA  s.p.a; ;SALDO Fatt.n. 2017000690005939  del 21/04/2017 Il versamento deve essere effettuato tramite bonifico in favore di Abbanoa Spa indicando il nominativo del titolare dell'utenza, il codice cliente, il codice PDE ed il numero fattura;13/05/2017;1813;14;154;1;Spese correnti;3;Acquisto di beni e servizi;2;Acquisto di servizi;5;Utenze e canoni;5;Acqua;13/05/2017
473;1;38,99;255,04;ABBANOA  s.p.a; ;SALDO Fatt.n. 2017000690005931  del 21/04/2017 Il versamento deve essere effettuato tramite bonifico in favore di Abbanoa Spa indicando il nominativo del titolare dell'utenza, il codice cliente, il codice PDE ed il numero fattura;13/05/2017;9476;1;155;1;Spese correnti;3;Acquisto di beni e servizi;2;Acquisto di servizi;5;Utenze e canoni;5;Acqua;13/05/2017
473;2;102,07;255,04;ABBANOA  s.p.a; ;SALDO Fatt.n. 2017000690006062  del 21/04/2017 Il versamento deve essere effettuato tramite bonifico in favore di Abbanoa Spa indicando il nominativo del titolare dell'utenza, il codice cliente, il codice PDE ed il numero fattura;13/05/2017;9476;1;155;1;Spese correnti;3;Acquisto di beni e servizi;2;Acquisto di servizi;5;Utenze e canoni;5;Acqua;13/05/2017
473;3;115,98;255,04;ABBANOA  s.p.a; ;SALDO Fatt.n. 2017000690006064  del 21/04/2017 Il versamento deve essere effettuato tramite bonifico in favore di Abbanoa Spa indicando il nominativo del titolare dell'utenza, il codice cliente, il codice PDE ed il numero fattura;13/05/2017;9476;1;155;1;Spese correnti;3;Acquisto di beni e servizi;2;Acquisto di servizi;5;Utenze e canoni;5;Acqua;13/05/2017
474;1;96,47;96,47;ABBANOA  s.p.a; ;SALDO Fatt.n. 2017000690005938  del 21/04/2017 Il versamento deve essere effettuato tramite bonifico in favore di Abbanoa Spa indicando il nominativo del titolare dell'utenza, il codice cliente, il codice PDE ed il numero fattura;13/05/2017;10539;1;156;1;Spese correnti;3;Acquisto di beni e servizi;2;Acquisto di servizi;5;Utenze e canoni;5;Acqua;13/05/2017
475;1;38,39;38,39;ABBANOA  s.p.a; ;SALDO Fatt.n. 2017000690006100  del 21/04/2017 Il versamento deve essere effettuato tramite bonifico in favore di Abbanoa Spa indicando il nominativo del titolare dell'utenza, il codice cliente, il codice PDE ed il numero fattura;13/05/2017;9563;4;157;1;Spese correnti;3;Acquisto di beni e servizi;2;Acquisto di servizi;5;Utenze e canoni;5;Acqua;13/05/2017
476;1;1.830,00;1.830,00;HALLEY SARDEGNA S.R.L.;ZB01B367FC;SALDO Fatt.n. 0000266  del 10/03/2017;13/05/2017;1223;2;275;1;Spese correnti;3;Acquisto di beni e servizi;2;Acquisto di servizi;19;Servizi informatici e di telecomunicazioni;2;Assistenza all'utente e formazione;13/05/2017
477;1;37,97;37,97;TOTALERG S.P.A.;X5917B2BD8;SALDO Fatt.n. I7136646  del 31/03/2017 fORNITURA CARBURANTE TOYOTA YARIS SERVZIO SOCIALE;13/05/2017;10417;3;56;1;Spese correnti;3;Acquisto di beni e servizi;1;Acquisto di beni;2;Altri beni di consumo;2;Carburanti, combustibili e lubrificanti;13/05/2017
478;1;5,46;227,66;BANCOPOSTA - POSTE ITALIANE S.P.A.; ;SALDO Fatt.n. 8717097806  del 06/04/2017 Fattura Elettronica relativa all'Identificativo Rendiconto 2090998907;13/05/2017;1223;1;152;1;Spese correnti;3;Acquisto di beni e servizi;2;Acquisto di servizi;16;Servizi amministrativi;2;Spese postali;13/05/2017
478;2;221,2;227,66;BANCOPOSTA - POSTE ITALIANE S.P.A.; ;SALDO Fatt.n. 8717124714  del 03/05/2017 Fattura Elettronica relativa all'Identificativo Rendiconto 2091390499;13/05/2017;1223;1;152;1;Spese correnti;3;Acquisto di beni e servizi;2;Acquisto di servizi;16;Servizi amministrativi;2;Spese postali;13/05/2017
479;1;28,87;215,33;ABBANOA  s.p.a; ;"SALDO Fatt.n. 2016000690012323  del 28/04/2016 Il versamento deve essere effettuato tramite bonifico in favore di Abbanoa Spa indicando il nominativo del titolare dell'utenza&amp;#44 il codice cliente&amp;#44 il codice PDE ed il numero fattura";13/05/2017;4311;8;253;1;Spese correnti;3;Acquisto di beni e servizi;2;Acquisto di servizi;5;Utenze e canoni;5;Acqua;13/05/2017
479;2;187,46;215,33;ABBANOA  s.p.a; ;SALDO Fatt.n. 2017000690005923  del 21/04/2017 Il versamento deve essere effettuato tramite bonifico in favore di Abbanoa Spa indicando il nominativo del titolare dell'utenza, il codice cliente, il codice PDE ed il numero fattura;13/05/2017;4311;8;253;1;Spese correnti;3;Acquisto di beni e servizi;2;Acquisto di servizi;5;Utenze e canoni;5;Acqua;13/05/2017
480;1;14,41;79,11;ABBANOA  s.p.a; ;"ACCONTO Fatt.n. 2016000690011303  del 28/04/2016 Il versamento deve essere effettuato tramite bonifico in favore di Abbanoa Spa indicando il nominativo del titolare dell'utenza&amp;#44 il codice cliente&amp;#44 il codice PDE ed il numero fattura";13/05/2017;1813;18;417;1;Spese correnti;3;Acquisto di beni e servizi;2;Acquisto di servizi;5;Utenze e canoni;5;Acqua;13/05/2017
480;2;65,7;79,11;ABBANOA  s.p.a; ;SALDO Fatt.n. 2017000690005919  del 21/04/2017 Il versamento deve essere effettuato tramite bonifico in favore di Abbanoa Spa indicando il nominativo del titolare dell'utenza, il codice cliente, il codice PDE ed il numero fattura;13/05/2017;1813;18;417;1;Spese correnti;3;Acquisto di beni e servizi;2;Acquisto di servizi;5;Utenze e canoni;5;Acqua;13/05/2017
481;1;36,56;36,56;ABBANOA  s.p.a; ;"SALDO Fatt.n. 2016000690011303  del 28/04/2016 Il versamento deve essere effettuato tramite bonifico in favore di Abbanoa Spa indicando il nominativo del titolare dell'utenza&amp;#44 il codice cliente&amp;#44 il codice PDE ed il numero fattura";13/05/2017;1813;14;262;1;Spese correnti;3;Acquisto di beni e servizi;2;Acquisto di servizi;5;Utenze e canoni;5;Acqua;13/05/2017
482;1;114,42;114,42;ABBANOA  s.p.a; ;"SALDO Fatt.n. 2016000690011302  del 28/04/2016 Il versamento deve essere effettuato tramite bonifico in favore di Abbanoa Spa indicando il nominativo del titolare dell'utenza&amp;#44 il codice cliente&amp;#44 il codice PDE ed il numero fattura";13/05/2017;4247;2;255;1;Spese correnti;3;Acquisto di beni e servizi;2;Acquisto di servizi;5;Utenze e canoni;5;Acqua;13/05/2017
483;1;22,8;22,8;LIBRERIA MONDADORI DI CASTA C. E M. SNC; ;SALDO Fatt.n. 26P  del 07/12/2015 Fornitura libri di testo scuola primaria A.S. 2015/2016;13/05/2017;4221;1;396;1;Spese correnti;3;Acquisto di beni e servizi;1;Acquisto di beni;1;Giornali, riviste e pubblicazioni;2;Pubblicazioni;13/05/2017
484;1;1.974,79;1.974,79;ENEL ENERGIA SpA;ZA90D7BC4B;SALDO Fatt.n. 004800608102  del 08/05/2017 consum energia ill.ne pubblica aprile 2017;20/05/2017;8237;1;37;1;Spese correnti;3;Acquisto di beni e servizi;2;Acquisto di servizi;5;Utenze e canoni;4;Energia elettrica;20/05/2017
485;1;66,88;66,88;VODAFONE OMNITEL B.V.;Z1F1AB5355;SALDO Fatt.n. AH07128912  del 25/04/2017 scissione pagamenti;20/05/2017;29114;0;239;2;Spese in conto capitale;2;Investimenti fissi lordi e acquisto di terreni;1;Beni materiali;9;Beni immobili;12;Infrastrutture stradali;20/05/2017
486;1;74,66;237,72;ENEL ENERGIA SpA;ZA90D7BC4B;Fatt.n. 004800626120  del 09/05/2017 COSNUMO ENERGIA MAGAZINO MARZO APRILE 2017;20/05/2017;1813;6;62;1;Spese correnti;3;Acquisto di beni e servizi;2;Acquisto di servizi;5;Utenze e canoni;4;Energia elettrica;20/05/2017
486;2;78,81;237,72;ENEL ENERGIA SpA;ZA90D7BC4B;Fatt.n. 004800626116  del 09/05/2017 CONSUMO ENERGIA MAGAZZINO MARZO APRILE 2017;20/05/2017;1813;6;62;1;Spese correnti;3;Acquisto di beni e servizi;2;Acquisto di servizi;5;Utenze e canoni;4;Energia elettrica;20/05/2017
486;3;85,25;237,72;ENEL ENERGIA SpA;ZA90D7BC4B;Fatt.n. 004800626114  del 09/05/2017 CONSUMO ENERGIA PIAZZA MERCARO MARZO APRLE 2017;20/05/2017;1813;6;62;1;Spese correnti;3;Acquisto di beni e servizi;2;Acquisto di servizi;5;Utenze e canoni;4;Energia elettrica;20/05/2017
487;1;105,98;105,98;ENEL ENERGIA SpA;ZA90D7BC4B;Fatt.n. 004800626115  del 09/05/2017 CNSUMO ENERGIA CHIOSCO CAMPO MARZO APRLE 2017;20/05/2017;6221;2;63;1;Spese correnti;3;Acquisto di beni e servizi;2;Acquisto di servizi;5;Utenze e canoni;4;Energia elettrica;20/05/2017
488;1;43,93;43,93;ENEL ENERGIA SpA;ZA90D7BC4B;Fatt.n. 004800626117  del 09/05/2017 CONSUMO ENERGIA CIMITERO MARZO APRILE 2017;20/05/2017;10539;2;160;1;Spese correnti;3;Acquisto di beni e servizi;2;Acquisto di servizi;5;Utenze e canoni;4;Energia elettrica;20/05/2017
489;1;1.274,02;1.274,02;E.N.E.L.   Servizio Elettrico S.p.A.; ;Fatt.n. 912030999890215  del 10/05/2017 CONSUMO ENERGIA ILLUMINAZIONE PUBBLICA;20/05/2017;8237;1;38;1;Spese correnti;3;Acquisto di beni e servizi;2;Acquisto di servizi;5;Utenze e canoni;4;Energia elettrica;20/05/2017
490;1;94,38;94,38;E.N.E.L.   Servizio Elettrico S.p.A.; ;SALDO Fatt.n. 912031710722812  del 10/05/2017 CONSUMO ENERGA ELETTRICA ECOCENTRO;20/05/2017;9563;4;64;1;Spese correnti;3;Acquisto di beni e servizi;2;Acquisto di servizi;5;Utenze e canoni;4;Energia elettrica;20/05/2017
491;1;1.220,00;1.220,00;I.S.I.com Impianti di Schirru Carlo Luigi;Z041C8AC40;SALDO Fatt.n. 5PA  del 08/05/2017 CANONE TELEFONO MARZO-APRILE 2017 TRASPORTO DATI CODICE CIG Z041C8A40;20/05/2017;1813;7;159;1;Spese correnti;3;Acquisto di beni e servizi;2;Acquisto di servizi;16;Servizi amministrativi;999;Altre spese per servizi amministrativi;20/05/2017
523;1;784,37;784,37;dipendenti comunali; ;STIPENDI MESE DI: MAGGIO 17;23/05/2017;1106;2;44;1;Spese correnti;3;Acquisto di beni e servizi;2;Acquisto di servizi;1;Organi e incarichi istituzionali dell'amministrazione;1;Organi istituzionali dell'amministrazione - Indennit�;23/05/2017
526;1;400;400;dipendenti comunali; ;Attivazione tirocinio di formazione e orientamento dal 07-11-2016 al 30-04-2017 e liquidazione mese di aprile 2017;23/05/2017;1200;1;387;1;Spese correnti;4;Trasferimenti correnti;2;Trasferimenti correnti a Famiglie;3;Borse di studio, dottorati di ricerca e contratti di formazione specialistica area medica;4;Tirocini formativi;23/05/2017
528;1;183,17;183,17;ABBANOA  s.p.a; ;SALDO Fatt.n. 2017000690005943  del 21/04/2017 Il versamento deve essere effettuato tramite bonifico in favore di Abbanoa Spa indicando il nominativo del titolare dell'utenza, il codice cliente, il codice PDE ed il numero fattura;24/05/2017;1813;14;154;1;Spese correnti;3;Acquisto di beni e servizi;2;Acquisto di servizi;5;Utenze e canoni;5;Acqua;24/05/2017
529;1;41,74;41,74;TOTALERG S.P.A.;ZC4180339B;SALDO Fatt.n. I7156694  del 30/04/2017;24/05/2017;8123;1;40;1;Spese correnti;3;Acquisto di beni e servizi;1;Acquisto di beni;2;Altri beni di consumo;2;Carburanti, combustibili e lubrificanti;24/05/2017
530;1;0,01;16,65;VODAFONE OMNITEL B.V.;Z401C91991;ACCONTO Fatt.n. ZZ07501471  del 23/03/2017 scissione pagamenti;24/05/2017;1616;1;447;1;Spese correnti;3;Acquisto di beni e servizi;2;Acquisto di servizi;99;Altri servizi;999;Altri servizi diversi n.a.c.;24/05/2017
530;2;16,64;16,65;VODAFONE OMNITEL B.V.;Z401C91991;SALDO Fatt.n. ZZ07501471  del 23/03/2017 scissione pagamenti;24/05/2017;1616;1;447;1;Spese correnti;3;Acquisto di beni e servizi;2;Acquisto di servizi;99;Altri servizi;999;Altri servizi diversi n.a.c.;24/05/2017
531;1;53,44;53,44;VODAFONE OMNITEL B.V.;Z401C91991;SALDO Fatt.n. AH07207470  del 27/04/2017 scissione pagamenti;24/05/2017;1616;1;447;1;Spese correnti;3;Acquisto di beni e servizi;2;Acquisto di servizi;99;Altri servizi;999;Altri servizi diversi n.a.c.;24/05/2017
532;1;540,84;540,84;ENEL ENERGIA SpA;ZA90D7BC4B;SALDO Fatt.n. 004800642367  del 12/05/2017;24/05/2017;4311;5;95;1;Spese correnti;3;Acquisto di beni e servizi;2;Acquisto di servizi;5;Utenze e canoni;4;Energia elettrica;24/05/2017
533;1;166,74;166,74;ENEL ENERGIA SpA;ZA90D7BC4B;SALDO Fatt.n. 004800626118  del 09/05/2017;24/05/2017;4247;1;96;1;Spese correnti;3;Acquisto di beni e servizi;2;Acquisto di servizi;5;Utenze e canoni;4;Energia elettrica;24/05/2017
534;1;869,51;869,51;ENEL ENERGIA SpA;ZA90D7BC4B;SALDO Fatt.n. 004800626113  del 09/05/2017;24/05/2017;1813;17;97;1;Spese correnti;3;Acquisto di beni e servizi;2;Acquisto di servizi;5;Utenze e canoni;4;Energia elettrica;24/05/2017
535;1;309,93;309,93;ENEL ENERGIA SpA;ZA90D7BC4B;SALDO Fatt.n. 004800626119  del 09/05/2017;24/05/2017;5122;4;98;1;Spese correnti;3;Acquisto di beni e servizi;2;Acquisto di servizi;5;Utenze e canoni;4;Energia elettrica;24/05/2017
536;1;80;80;A.N.U.S.C.A. SRL;NO;SALDO Fatt.n. 1063E  del 22/05/2017;24/05/2017;1813;4;91;1;Spese correnti;3;Acquisto di beni e servizi;2;Acquisto di servizi;4;Acquisto di servizi per formazione e addestramento del personale dell'ente;999;Acquisto di servizi per altre spese per formazione e addestramento n.a.c.;24/05/2017
537;1;121,98;121,98;BANCOPOSTA - POSTE ITALIANE S.P.A.; ;Fatt.n. 8717150925  del 23/05/2017 Fattura Elettronica relativa all'Identificativo Rendiconto 2091953637 MARZO 2017;27/05/2017;1223;1;152;1;Spese correnti;3;Acquisto di beni e servizi;2;Acquisto di servizi;16;Servizi amministrativi;2;Spese postali;27/05/2017
538;1;2.496,00;2.496,00;COMUNITA' MONTANA  SARCIDANO - BARBAGIA DI SEULO; ;LIQUID CONTR. ORDINARIO 2017 Spese di funzionamento;27/05/2017;1817;1;164;1;Spese correnti;4;Trasferimenti correnti;1;Trasferimenti correnti a Amministrazioni Pubbliche;2;Trasferimenti correnti a Amministrazioni Locali;6;Trasferimenti correnti a Comunit� Montane;27/05/2017
539;1;20.664,79;20.664,79;COMUNITA' MONTANA  SARCIDANO - BARBAGIA DI SEULO; ;Servizio gestioe raccolta differenziata I TRIMESTRE 2017;27/05/2017;9573;2;170;1;Spese correnti;4;Trasferimenti correnti;1;Trasferimenti correnti a Amministrazioni Pubbliche;2;Trasferimenti correnti a Amministrazioni Locali;6;Trasferimenti correnti a Comunit� Montane;27/05/2017
540;1;5.978,00;5.978,00;SE.AM. S.A.S. di Secci Salvatore;Z1F1DCABB1;SALDO Fatt.n. 7  del 03/05/2017 ABBATTIMENTO N. 30 ALBERI DI ALTO FUSTO CIG. Z1F1DCABB1 DETERMINA N. 57 DEL 28/03/2017.;27/05/2017;29114;0;87;2;Spese in conto capitale;2;Investimenti fissi lordi e acquisto di terreni;1;Beni materiali;9;Beni immobili;999;Beni immobili n.a.c.;27/05/2017
541;1;7,6;7,6;Gestore dei Servizi Energetici - GSE S.p.a.; ;SALDO Fatt.n. 15223  del 08/05/2017 DELIB.ARG/elt 74/08-ART.6.1 lett.c SCAMBIO SUL POSTO SSP00150428;27/05/2017;1813;6;168;1;Spese correnti;3;Acquisto di beni e servizi;2;Acquisto di servizi;5;Utenze e canoni;4;Energia elettrica;27/05/2017
542;1;599,02;599,02;A.F. TERMOCLIMA DI FARCI ALESSANDRO;Z571829F4C;SALDO Fatt.n. 000001-2017-FE  del 03/04/2017 MANUTENZIONE ORDINARIA 2016;27/05/2017;8152;2;137;1;Spese correnti;3;Acquisto di beni e servizi;2;Acquisto di servizi;9;Manutenzione ordinaria e riparazioni;4;Manutenzione ordinaria e riparazioni di impianti e macchinari;27/05/2017
543;1;135,6;135,6;CONSUL.SAR.2000 - SOC.COOP. a.r.l.;Z5F0FE5329;SALDO Fatt.n. FATTPA 2_17  del 23/01/2017 SALDO;27/05/2017;1813;8;169;1;Spese correnti;3;Acquisto di beni e servizi;2;Acquisto di servizi;18;Servizi sanitari;1;Spese per accertamenti sanitari resi necessari dall'attivit� lavorativa;27/05/2017
544;1;4.350,59;4.350,59;MEDDA LUIGINO;Z991B95C4C;"SALDO Fatt.n. 000004-2017-FatPA17  del 23/05/2017 DIREZIONE LAVORI, CONTABILITA', CERTIFICATO DI REGOLARE ESECUZIONE E SICUREZZA IN FASE ESECUTIVA IN RELAZIONE AI LAVORI DI MANUTENZIONE STRADALE DI STRADE URBANE ED EXTRAURBANE""  SECONDO INTERVENTO";27/05/2017;28112;21;306;2;Spese in conto capitale;2;Investimenti fissi lordi e acquisto di terreni;1;Beni materiali;9;Beni immobili;12;Infrastrutture stradali;27/05/2017
545;1;8.515,39;8.515,39;ELETTROIMPIANTI DI FRONGIA ANTONIO GEROLAMO;Z291CCDE08;Fatt.n. 7E  del 22/05/2017 EFFICENTAMENTO  ENERGETICO DEGLI IMPIANTI ELETTRICI E DI ILLUMINAZIONE DELLA CASA COMUNALE E DEL CENTRO SOCIALE DET. 272 DEL 30/12/2016 CIG: Z291CCDE08;27/05/2017;28213;1;424;2;Spese in conto capitale;5;Altre spese in conto capitale;99;Altre spese in conto capitale n.a.c.;99;Altre spese in conto capitale n.a.c.;999;Altre spese in conto capitale n.a.c.;27/05/2017
546;1;115,85;115,85;ELETTROIMPIANTI DI FRONGIA ANTONIO GEROLAMO;Z291CCDE08;Fatt.n. 7E  del 22/05/2017 EFFICENTAMENTO  ENERGETICO DEGLI IMPIANTI ELETTRICI E DI ILLUMINAZIONE DELLA CASA COMUNALE E DEL CENTRO SOCIALE DET. 272 DEL 30/12/2016 CIG: Z291CCDE08;27/05/2017;29113;3;425;2;Spese in conto capitale;5;Altre spese in conto capitale;99;Altre spese in conto capitale n.a.c.;99;Altre spese in conto capitale n.a.c.;999;Altre spese in conto capitale n.a.c.;27/05/2017
547;1;441,14;441,14;CASSA DEPOSITI E PRESTITI; ;Rate mutuo strade comunali 1^ semestre 2016;30/05/2017;8170;1;165;1;Spese correnti;7;Interessi passivi;5;Interessi su Mutui e altri finanziamenti a medio lungo termine;4;Interessi passivi su finanziamenti a medio lungo termine a Imprese;3;Interessi passivi a Cassa Depositi e Prestiti SPA su mutui e altri finanziamenti a medio lungo termine;30/05/2017
548;1;1.740,33;1.740,33;CASSA DEPOSITI E PRESTITI; ;Rate mutuo impianto fotovoltaico 1^ semestre 2017;30/05/2017;9150;1;166;1;Spese correnti;7;Interessi passivi;5;Interessi su Mutui e altri finanziamenti a medio lungo termine;4;Interessi passivi su finanziamenti a medio lungo termine a Imprese;3;Interessi passivi a Cassa Depositi e Prestiti SPA su mutui e altri finanziamenti a medio lungo termine;30/05/2017
550;1;3.942,66;3.942,66;SANNA IRENEO;ZCB1CE97C4;SALDO Fatt.n. FATTPA 5_17  del 12/04/2017 ONORARI CCORD. SICUREZZA LAVORI OPERE COMPLEMENTARI MERCATO;30/05/2017;30521;0;435;2;Spese in conto capitale;2;Investimenti fissi lordi e acquisto di terreni;1;Beni materiali;9;Beni immobili;2;Fabbricati ad uso commerciale;30/05/2017
551;1;23.320,00;23.320,00;ICEA SRL;69680454A3;SALDO Fatt.n. FATTPA 8_17  del 23/05/2017 II SAL OPERE COMPLEMENTARI MERCATO;30/05/2017;30521;0;51;2;Spese in conto capitale;2;Investimenti fissi lordi e acquisto di terreni;1;Beni materiali;9;Beni immobili;2;Fabbricati ad uso commerciale;30/05/2017
552;1;2.506,89;2.506,89;Soggetto tutelato dalla normativa sulla privacy; ;"Programma regionale ""Ritornare a casa"" L.R. 4/2006 Art. 17, comma 1 - Impegno di spesa per la VII annualita' a favore del beneficiario n.2  - periodo Giugno 2016/Maggio 2017";07/06/2017;10472;3;307;1;Spese correnti;4;Trasferimenti correnti;2;Trasferimenti correnti a Famiglie;2;Interventi assistenziali;999;Altri assegni e sussidi assistenziali;07/06/2017
553;1;546,92;546,92;Soggetto tutelato dalla normativa sulla privacy; ;"Programma regionale ""Ritornare a casa"" L.R. 4/2006 Art. 17, comma 1 - Impegno di spesa per la VII annualita' a favore del beneficiario n.2  - periodo Giugno 2016/Maggio 2017";07/06/2017;10473;4;308;1;Spese correnti;4;Trasferimenti correnti;2;Trasferimenti correnti a Famiglie;2;Interventi assistenziali;999;Altri assegni e sussidi assistenziali;07/06/2017
554;1;81,55;81,55;Soggetto tutelato dalla normativa sulla privacy; ;"Programma regionale ""Ritornare a casa"" L.R. 4/2006 Art. 17, comma 1 - Impegno di spesa per la VII annualita' a favore del beneficiario n.2  - periodo Giugno 2016/Maggio 2017";07/06/2017;10473;4;455;1;Spese correnti;4;Trasferimenti correnti;2;Trasferimenti correnti a Famiglie;2;Interventi assistenziali;999;Altri assegni e sussidi assistenziali;07/06/2017
556;1;83,4;2.168,49;SOI STEFANO;Z671CE964E;ACCONTO Fatt.n. 11/PA  del 06/06/2017 ONORARI II SAL OPERE COMPLEMENTARI MERCATO;10/06/2017;30521;0;434;2;Spese in conto capitale;2;Investimenti fissi lordi e acquisto di terreni;1;Beni materiali;9;Beni immobili;2;Fabbricati ad uso commerciale;10/06/2017
556;2;2.085,09;2.168,49;SOI STEFANO;Z671CE964E;SALDO Fatt.n. 11/PA  del 06/06/2017 ONORARI II SAL OPERE COMPLEMENTARI MERCATO;10/06/2017;30521;0;434;2;Spese in conto capitale;2;Investimenti fissi lordi e acquisto di terreni;1;Beni materiali;9;Beni immobili;2;Fabbricati ad uso commerciale;10/06/2017
557;1;2.168,49;2.168,49;ANEDDA FRANCESCO;Z671CE964E;SALDO Fatt.n. 10/PA  del 03/06/2017 ONORARI II SAL OPERE DI COMPLETAMENTO MERCATO PRODUTTIVO;10/06/2017;30521;0;434;2;Spese in conto capitale;2;Investimenti fissi lordi e acquisto di terreni;1;Beni materiali;9;Beni immobili;2;Fabbricati ad uso commerciale;10/06/2017
558;1;10.628,73;10.628,73;CONSORZIO NETWORK ETICO TERRITORIAL SOC.COOP.SOC. ONLUS;6814470689;Fatt.n. 2/771  del 19/05/2017 CORRISP GESTIONE ASSOCIATA MENSA E PASTI CALDI MESE DI APRLE 2017;10/06/2017;4251;0;85;1;Spese correnti;3;Acquisto di beni e servizi;2;Acquisto di servizi;15;Contratti di servizio pubblico;6;Contratti di servizio per le mense scolastiche;10/06/2017
559;1;1.130,75;1.130,75;CONSORZIO NETWORK ETICO TERRITORIAL SOC.COOP.SOC. ONLUS;6814470689;Fatt.n. 2/771  del 19/05/2017 CORRISP GESTIONE ASSOCIATA MENSA E PASTI CALDI MESE DI APRLE 2017;10/06/2017;10430;4;86;1;Spese correnti;3;Acquisto di beni e servizi;2;Acquisto di servizi;15;Contratti di servizio pubblico;999;Altre spese per contratti di servizio pubblico;10/06/2017
560;1;3.286,69;3.286,69;AUTONOLEGGIO DI COGOTZI PAOLO & C. snc;59157707D5;SALDO Fatt.n. 130 PA  del 31/05/2017 SERVIZIO TRASPORTO SCOLASTICO A.S 2016/2017  MESE MAGGIO 2017;10/06/2017;4311;10;99;1;Spese correnti;3;Acquisto di beni e servizi;2;Acquisto di servizi;15;Contratti di servizio pubblico;2;Contratti di servizio di trasporto scolastico;10/06/2017
561;1;135,12;135,12;Soggetto tutelato dalla normativa sulla privacy; ;Liquid rimborso spese sostenute L. 162/98 aprile 2017;10/06/2017;10470;5;136;1;Spese correnti;4;Trasferimenti correnti;2;Trasferimenti correnti a Famiglie;2;Interventi assistenziali;999;Altri assegni e sussidi assistenziali;10/06/2017
562;1;227,9;227,9;Soggetto tutelato dalla normativa sulla privacy; ;Liquid rimborso spese sostenute L. 162/98 maggio 2017;10/06/2017;10470;5;139;1;Spese correnti;4;Trasferimenti correnti;2;Trasferimenti correnti a Famiglie;2;Interventi assistenziali;999;Altri assegni e sussidi assistenziali;10/06/2017
563;1;532,92;532,92;Soggetto tutelato dalla normativa sulla privacy; ;Liquid rimborso spese sostenute L. 162/98 mar/mag e INPS 2017;10/06/2017;10470;5;140;1;Spese correnti;4;Trasferimenti correnti;2;Trasferimenti correnti a Famiglie;2;Interventi assistenziali;999;Altri assegni e sussidi assistenziali;10/06/2017
564;1;125;125;Soggetto tutelato dalla normativa sulla privacy; ;Liquid rimborso spese sostenute L. 162/98 maggio 2017 e INPS;10/06/2017;10470;5;141;1;Spese correnti;4;Trasferimenti correnti;2;Trasferimenti correnti a Famiglie;2;Interventi assistenziali;999;Altri assegni e sussidi assistenziali;10/06/2017
565;1;294;294;Soggetto tutelato dalla normativa sulla privacy; ;Liquid rimborso spese sostenute L. 162/98 aprile maggio 2017;10/06/2017;10470;5;145;1;Spese correnti;4;Trasferimenti correnti;2;Trasferimenti correnti a Famiglie;2;Interventi assistenziali;999;Altri assegni e sussidi assistenziali;10/06/2017
566;1;135,12;135,12;Soggetto tutelato dalla normativa sulla privacy; ;Liquid rimborso spese sostenute L. 162/98 aprile 2017;10/06/2017;10470;5;146;1;Spese correnti;4;Trasferimenti correnti;2;Trasferimenti correnti a Famiglie;2;Interventi assistenziali;999;Altri assegni e sussidi assistenziali;10/06/2017
567;1;352;352;Soggetto tutelato dalla normativa sulla privacy; ;Liquid rimborso spese sostenute L. 162/98 aprile maggio 2017;10/06/2017;10470;5;147;1;Spese correnti;4;Trasferimenti correnti;2;Trasferimenti correnti a Famiglie;2;Interventi assistenziali;999;Altri assegni e sussidi assistenziali;10/06/2017
568;1;994,9;994,9;ECO LASER INFORMATICA SRL;Z3E1D63FF5;SALDO Fatt.n. 002065  del 28/04/2017 fornitura toner e materiale per stampanti uffici comunali;10/06/2017;1812;2;94;1;Spese correnti;3;Acquisto di beni e servizi;1;Acquisto di beni;2;Altri beni di consumo;999;Altri beni e materiali di consumo n.a.c.;10/06/2017
570;1;986,92;986,92;Soggetto tutelato dalla normativa sulla privacy; ;Progetto ritornare a casa utente n. 1 mese maggio 2017;14/06/2017;10472;3;89;1;Spese correnti;4;Trasferimenti correnti;2;Trasferimenti correnti a Famiglie;2;Interventi assistenziali;999;Altri assegni e sussidi assistenziali;14/06/2017
571;1;246,48;246,48;Soggetto tutelato dalla normativa sulla privacy; ;Progetto Ritornare a casa utente 01 mese maggio 2017;14/06/2017;10473;4;90;1;Spese correnti;4;Trasferimenti correnti;2;Trasferimenti correnti a Famiglie;2;Interventi assistenziali;999;Altri assegni e sussidi assistenziali;14/06/2017
572;1;10.656,89;10.656,89;SVILUPPO IMMOBILIARE SRLCR;6513557546;SALDO Fatt.n. FATTPA 12_17  del 10/06/2017;14/06/2017;29617;0;410;2;Spese in conto capitale;2;Investimenti fissi lordi e acquisto di terreni;1;Beni materiali;9;Beni immobili;14;Opere per la sistemazione del suolo;14/06/2017
604;1;784,37;784,37;dipendenti comunali; ;STIPENDI MESE DI: GIUGNO 17;20/06/2017;1106;2;44;1;Spese correnti;3;Acquisto di beni e servizi;2;Acquisto di servizi;1;Organi e incarichi istituzionali dell'amministrazione;1;Organi istituzionali dell'amministrazione - Indennit�;20/06/2017
607;1;400;400;dipendenti comunali; ;liquidazione spesa tirocinante mese maggio 2017;20/06/2017;1200;1;107;1;Spese correnti;4;Trasferimenti correnti;2;Trasferimenti correnti a Famiglie;3;Borse di studio, dottorati di ricerca e contratti di formazione specialistica area medica;4;Tirocini formativi;20/06/2017
619;1;4.145,00;4.145,00;GIUNONE SOCIETA' COOPERATIVA;673092897E;SALDO Fatt.n. 13/PA  del 30/05/2017 Vs dare per serv. gest.musei + serv aggiuntivi e centro@ll-in MAGGIO 2017 - CIG 673092897E;22/06/2017;7219;1;209;1;Spese correnti;3;Acquisto di beni e servizi;2;Acquisto di servizi;15;Contratti di servizio pubblico;999;Altre spese per contratti di servizio pubblico;22/06/2017
620;1;38,5;212,19;E.N.E.L.   Servizio Elettrico S.p.A.; ;SALDO Fatt.n. 912031051703127  del 10/06/2017;22/06/2017;1813;6;42;1;Spese correnti;3;Acquisto di beni e servizi;2;Acquisto di servizi;5;Utenze e canoni;4;Energia elettrica;22/06/2017
620;2;175,69;212,19;E.N.E.L.   Servizio Elettrico S.p.A.; ;SALDO Fatt.n. 912030171708815  del 10/06/2017;22/06/2017;1813;6;42;1;Spese correnti;3;Acquisto di beni e servizi;2;Acquisto di servizi;5;Utenze e canoni;4;Energia elettrica;22/06/2017
621;1;1.258,95;1.258,95;E.N.E.L.   Servizio Elettrico S.p.A.; ;SALDO Fatt.n. 912030999890216  del 10/06/2017;22/06/2017;8237;1;38;1;Spese correnti;3;Acquisto di beni e servizi;2;Acquisto di servizi;5;Utenze e canoni;4;Energia elettrica;22/06/2017
622;1;38,5;38,5;E.N.E.L.   Servizio Elettrico S.p.A.; ;SALDO Fatt.n. 912030301701528  del 10/06/2017;22/06/2017;6221;2;43;1;Spese correnti;3;Acquisto di beni e servizi;2;Acquisto di servizi;5;Utenze e canoni;4;Energia elettrica;22/06/2017
623;1;1.821,98;1.821,98;ENEL ENERGIA SpA;ZA90D7BC4B;SALDO Fatt.n. 004800772696  del 08/06/2017;22/06/2017;8237;1;37;1;Spese correnti;3;Acquisto di beni e servizi;2;Acquisto di servizi;5;Utenze e canoni;4;Energia elettrica;22/06/2017
624;1;14,16;14,16;ENEL ENERGIA SpA;ZA90D7BC4B;SALDO Fatt.n. 004800771411  del 08/06/2017;22/06/2017;6221;2;63;1;Spese correnti;3;Acquisto di beni e servizi;2;Acquisto di servizi;5;Utenze e canoni;4;Energia elettrica;22/06/2017
629;1;7.020,00;7.020,00;BALLOCCO ALDO; ;"LR.29/98 - RECUPERO PRIMARIO DI UN EDIFICIO STORICO. Liquidazione di un acconto del contributo assegnato - Ballocco Aldo;";22/06/2017;29119;6;282;2;Spese in conto capitale;3;Contributi agli investimenti;2;Contributi agli investimenti a Famiglie;1;Contributi agli investimenti a Famiglie;1;Contributi agli investimenti a Famiglie;22/06/2017
630;1;36.960,00;36.960,00;ICEA SRL;62395943DB;SALDO Fatt.n. FATTPA 9_17  del 16/06/2017;22/06/2017;30521;0;429;2;Spese in conto capitale;2;Investimenti fissi lordi e acquisto di terreni;1;Beni materiali;9;Beni immobili;2;Fabbricati ad uso commerciale;22/06/2017
631;1;0,01;61,39;TOTALERG S.P.A.;ZC4180339B;ACCONTO Fatt.n. I7211192  del 31/05/2017;26/06/2017;8123;1;40;1;Spese correnti;3;Acquisto di beni e servizi;1;Acquisto di beni;2;Altri beni di consumo;2;Carburanti, combustibili e lubrificanti;26/06/2017
631;2;61,38;61,39;TOTALERG S.P.A.;ZC4180339B;SALDO Fatt.n. I7211192  del 31/05/2017;26/06/2017;8123;1;40;1;Spese correnti;3;Acquisto di beni e servizi;1;Acquisto di beni;2;Altri beni di consumo;2;Carburanti, combustibili e lubrificanti;26/06/2017
632;1;1.151,25;1.151,25;COMUNE DI GENONI; ;VALORIZZAZIONE SUGHERETA COMUNALE-FONDI ARGEA- Accantonamento incentivo;27/06/2017;29113;8;408;2;Spese in conto capitale;2;Investimenti fissi lordi e acquisto di terreni;2;Terreni e beni materiali non prodotti;2;Patrimonio naturale non prodotto;3;Foreste;27/06/2017
633;1;1.151,25;1.151,25;COMUNE DI GENONI; ;VALORIZZAZIONE SUGHERETA COMUNALE-FONDI ARGEA- Accantonamento incentivo;27/06/2017;29113;8;408;2;Spese in conto capitale;2;Investimenti fissi lordi e acquisto di terreni;2;Terreni e beni materiali non prodotti;2;Patrimonio naturale non prodotto;3;Foreste;27/06/2017
634;1;11.000,00;11.000,00;COMUNE DI NURAGUS; ;servizio mensa scolastica A.S. 2015/2016;27/06/2017;4275;4;418;1;Spese correnti;4;Trasferimenti correnti;1;Trasferimenti correnti a Amministrazioni Pubbliche;2;Trasferimenti correnti a Amministrazioni Locali;3;Trasferimenti correnti a Comuni;27/06/2017
635;1;1.371,68;1.371,68;COMUNE DI NURAGUS; ;Rimborso quota servizio mensa scolastica al comune di Nuragus periodo gennaio2015/maggio 2016. Integrazione impegno di spesa e liquidazione.;27/06/2017;4275;4;179;1;Spese correnti;4;Trasferimenti correnti;1;Trasferimenti correnti a Amministrazioni Pubbliche;2;Trasferimenti correnti a Amministrazioni Locali;3;Trasferimenti correnti a Comuni;27/06/2017
636;1;39,48;39,48;TOTALERG S.P.A.;X5917B2BD8;SALDO Fatt.n. I7212826  del 31/05/2017;27/06/2017;10417;3;56;1;Spese correnti;3;Acquisto di beni e servizi;1;Acquisto di beni;2;Altri beni di consumo;2;Carburanti, combustibili e lubrificanti;27/06/2017
637;1;365,77;365,77;ALD AUTOMOTIVE ITALIA SRL;5104930181;SALDO Fatt.n. INRF238488  del 31/05/2017;27/06/2017;10441;8;42;1;Spese correnti;3;Acquisto di beni e servizi;2;Acquisto di servizi;7;Utilizzo di beni di terzi;2;Noleggi di mezzi di trasporto;27/06/2017
638;1;275,73;275,73;A.I.A.S. - ASS.NE ITALIANA  ASS.ZA AGLI SPASTICI; ;L. R. 12/85. Impegno e liquidazione III trimestre 2016 a favore dell'AIAS per trasporto.;27/06/2017;10453;5;427;1;Spese correnti;4;Trasferimenti correnti;2;Trasferimenti correnti a Famiglie;2;Interventi assistenziali;999;Altri assegni e sussidi assistenziali;27/06/2017
639;1;215,66;215,66;A.I.A.S. - ASS.NE ITALIANA  ASS.ZA AGLI SPASTICI; ;L.R. 12/85. Impegno e liquidazione IV trimestre 2016;27/06/2017;10453;3;454;1;Spese correnti;4;Trasferimenti correnti;2;Trasferimenti correnti a Famiglie;2;Interventi assistenziali;999;Altri assegni e sussidi assistenziali;27/06/2017
640;1;1.258,21;1.258,21;A.I.A.S. - ASS.NE ITALIANA  ASS.ZA AGLI SPASTICI; ;L. R. 12/85 . Impegno e liquidazione IV trimestre 2016 a favore dell'AIAS per trasporto.;27/06/2017;10453;3;188;1;Spese correnti;4;Trasferimenti correnti;2;Trasferimenti correnti a Famiglie;2;Interventi assistenziali;999;Altri assegni e sussidi assistenziali;27/06/2017
641;1;2.414,88;2.414,88;SANNA IRENEO;Z0B177A270;SALDO Fatt.n. FATTPA 7_17  del 19/06/2017;29/06/2017;30521;0;387;2;Spese in conto capitale;2;Investimenti fissi lordi e acquisto di terreni;1;Beni materiali;9;Beni immobili;2;Fabbricati ad uso commerciale;29/06/2017
643;1;82,7;82,7;LAGO NURAGHE SOC. COOPERATIVA SOCIALE;54042418BF;Aggiudicazione definitiva alla Cooperativa Lago e Nuraghe di Senorbi del Servizio Assistenza Domicil;29/06/2017;10441;1;161;1;Spese correnti;3;Acquisto di beni e servizi;2;Acquisto di servizi;15;Contratti di servizio pubblico;999;Altre spese per contratti di servizio pubblico;29/06/2017
644;1;531,7;531,7;SARDA RETI GAS srl;ZEB0D7BD6A;SALDO Fatt.n. 2017-VEL2-0000092  del 30/04/2017 Fattura di Vendita C/to Somministrazione (Elettronica);29/06/2017;5122;3;148;1;Spese correnti;3;Acquisto di beni e servizi;2;Acquisto di servizi;5;Utenze e canoni;6;Gas;29/06/2017
645;1;1.303,67;1.303,67;SARDA RETI GAS srl;ZEB0D7BD6A;SALDO Fatt.n. 2017-VEL2-0000093  del 30/04/2017 Fattura di Vendita C/to Somministrazione (Elettronica);29/06/2017;4311;16;149;1;Spese correnti;3;Acquisto di beni e servizi;2;Acquisto di servizi;5;Utenze e canoni;6;Gas;29/06/2017
646;1;198,74;198,74;BANCOPOSTA - POSTE ITALIANE S.P.A.; ;SALDO Fatt.n. 8717175916  del 14/06/2017 Fattura Elettronica relativa all'Identificativo Rendiconto 2092454589;29/06/2017;1223;1;152;1;Spese correnti;3;Acquisto di beni e servizi;2;Acquisto di servizi;16;Servizi amministrativi;2;Spese postali;29/06/2017
647;1;25,42;25,42;REGIONE AUTONOMA DELLA SARDEGNA-ASSESSORATO IGIENE E SA; ;BURAS -Inserzione  n.24833/2017 avviso pubblicazione Bando  Generale di Concorso E.R.P COMUNE DI GENONI- Impegno di spesa e Liquidazione;29/06/2017;1221;1;191;1;Spese correnti;3;Acquisto di beni e servizi;2;Acquisto di servizi;16;Servizi amministrativi;1;Pubblicazione bandi di gara;29/06/2017
648;1;143,44;143,44;ABBANOA  s.p.a; ;SALDO Fatt.n. 2017000690005925  del 21/04/2017 Il versamento deve essere effettuato tramite bonifico in favore di Abbanoa Spa indicando il nominativo del titolare dell'utenza, il codice cliente, il codice PDE ed il numero fattura;29/06/2017;4247;2;158;1;Spese correnti;3;Acquisto di beni e servizi;2;Acquisto di servizi;5;Utenze e canoni;5;Acqua;29/06/2017
649;1;97,79;97,79;TREPERDUE Soc. Coop. Sociale;Z131949DD7;ACCONTO Fatt.n. 39/PA  del 18/05/2017 GESTIONE SERVIZIO CIVICO APRILE MAGGIO 2017 E RITENUTA DI GARANZIA;29/06/2017;10441;1;212;1;Spese correnti;3;Acquisto di beni e servizi;2;Acquisto di servizi;15;Contratti di servizio pubblico;999;Altre spese per contratti di servizio pubblico;29/06/2017
650;1;620;620;TREPERDUE Soc. Coop. Sociale; ;SALDO Fatt.n. 39/PA  del 18/05/2017 GESTIONE SERVIZIO CIVICO APRILE MAGGIO 2017 E RITENUTA DI GARANZIA;29/06/2017;10473;1;226;1;Spese correnti;4;Trasferimenti correnti;2;Trasferimenti correnti a Famiglie;2;Interventi assistenziali;999;Altri assegni e sussidi assistenziali;29/06/2017
651;1;3.050,00;3.050,00;ICEA SRL;Z791EFB74F;SALDO Fatt.n. FATTPA 10_17  del 27/06/2017 Corrisp. opere di finitura mercato copertp;29/06/2017;29113;3;177;2;Spese in conto capitale;5;Altre spese in conto capitale;99;Altre spese in conto capitale n.a.c.;99;Altre spese in conto capitale n.a.c.;999;Altre spese in conto capitale n.a.c.;29/06/2017
652;1;183;183;OTC s.r.l. - ORGAN. TECN. COMM.LE;Z11151932D;SALDO Fatt.n. 3/5  del 19/06/2017 VEND.+INST.;30/06/2017;8152;2;217;1;Spese correnti;3;Acquisto di beni e servizi;2;Acquisto di servizi;9;Manutenzione ordinaria e riparazioni;4;Manutenzione ordinaria e riparazioni di impianti e macchinari;30/06/2017
653;1;628,32;628,32;Soggetto tutelato dalla normativa sulla privacy; ;"Programma regionale ""Ritornare a casa"" L.R. 4/2006 Art. 17, comma 1 - Impegno di spesa per la VII annualita' a favore del beneficiario n.2  - periodo novembre/dicembre 2016";30/06/2017;10473;4;455;1;Spese correnti;4;Trasferimenti correnti;2;Trasferimenti correnti a Famiglie;2;Interventi assistenziali;999;Altri assegni e sussidi assistenziali;30/06/2017
654;1;2.513,28;2.513,28;Soggetto tutelato dalla normativa sulla privacy; ;"Programma regionale ""Ritornare a casa"" L.R. 4/2006 Art. 17, comma 1 - Impegno di spesa per la VII annualita' a favore del beneficiario n.2  - periodo  novembre/dicembre  2016";30/06/2017;10472;3;307;1;Spese correnti;4;Trasferimenti correnti;2;Trasferimenti correnti a Famiglie;2;Interventi assistenziali;999;Altri assegni e sussidi assistenziali;30/06/2017
